{"text_format":"3","workbook":"xlsx","n_sheets":6,"sheets":["Kohdetiedot","Energia","Toimenpiteet","Tarkastuslista","Ohjeita","Luokitukset"],"not_rendered":{"external_links":1,"defined_names":9,"comments":3},"read":"whole","date_system":"1900"}

{"sheet":"Kohdetiedot","index":0,"n_rows":72,"n_cols":13,"rows_kept":72,"merged":[[2,1,2,2],[4,10,10,18],[8,1,8,8],[10,2,10,8],[12,2,12,8],[14,4,14,8],[37,2,37,8],[41,2,41,9],[42,2,42,8],[43,2,43,9],[44,2,44,9],[46,2,46,9],[48,2,48,9],[50,2,50,9],[51,2,51,9],[54,2,54,9],[56,2,56,9],[57,2,57,9],[58,2,58,9],[59,2,59,4],[60,2,60,4],[61,2,61,4],[62,2,62,4],[63,2,63,4],[64,2,64,8],[65,2,65,9],[67,2,67,6],[68,2,68,6],[69,2,69,6],[70,2,70,6],[71,2,71,6],[72,2,72,9],[73,2,73,9]]}
["Päätaulu Täsmäkatselmus",null,"Kohdetiedot",{"$nulls":9},"tama sarake piilotettaan lopullisesta"]
[null,"2021-08-13"]
[null,"Hankkeen diaari numero",{"$nulls":3},"/",31,"/",null,null,"Vihreällä merkityt solut ovat pakollisia"]
[null,null,"esim.",null,1234,"/",31,"/",2021]
[]
[null,"Raportin päiväys",null,null,"esim. 16.8.2021"]
[]
[]
[null,"Kohteen tiedot"]
[]
[null,"Kohteen nimi"]
[]
[null,"Osoite"]
[]
[null,"Postinro ja toimipaikka"]
[]
[null,"Rakennustyyppi","*Tähän valitaan rakennustyyppi listasta vastaavati kuin katselmusten seurantalomakkeella B1 ESS puolella tällä hetkellä"]
[]
[null,"Toimiala","*Tähän valitaan toimiala listasta vastaavati kuin katselmusten seurantalomakkeella B1 ESS puolella tällä hetkellä"]
[]
[null,"Rakennustilavuus"]
[]
[null,"Lämmitetty tilavuus",null,"m3"]
[]
[null,"Kylmätilavuus",null,"m3"]
[]
[null,"Rakennuksen bruttoala"]
[]
[null,"lämmin",null,"m2"]
[]
[null,"kylmä",null,"m2"]
[]
[]
[null,"Rakennusvuosi"]
[]
[null,"Peruskorjausvuosi"]
[]
[null,"Kiinteistörekisteritunnus"]
[]
[null,"Rakennusten lkm"]
[]
[null,"Tuotanto"]
[null,"Toimialaluokka (TOL2008)",{"$nulls":7},{"$f":"IF(ISBLANK(M43),\"\",M43)","v":""},null,null,{"$f":"IF(ISBLANK(C43),\"\",(VLOOKUP($C$43,Luokitukset!$K$12:$L$371,2,FALSE)))","v":""}]
[null,"Tekijät"]
[]
[null,"Vastuuhenkilöt"]
[null,"LVI"]
[]
[null,"Sähkö"]
[]
[null,"Kohteen käyttötarkoitus ja toiminta:"]
[]
[null,"Yhteyshenkilö päätauluun liittyvissä kysymyksissä"]
[]
[null,"Yhteyshenkilön nimi"]
[]
[null,"Yhteyshenkilön sähköposti"]
[]
[null,null,"Rakennuksen tiedot"]
[null,"Tilavuus (kokonais) [m3]"]
[null,"Lämmitetty tilavuus [m3]"]
[null,"Lämmitetty pinta-ala [m2]"]
[null,"Rakennusvuosi"]
[null,"Saneerausvuosi"]
[null,"Rakennustyyppi (2018 luokittelu)",{"$nulls":7},{"$f":"IF(ISBLANK(M65),\"\",M65)","v":""},null,null,{"$f":"IF(ISBLANK(C65),\"\",VLOOKUP($C$65,Luokitukset!$C$12:$D$115,2,FALSE))","v":""}]
[]
[null,null,"Energiatehokkuussopimus",{"$nulls":3},"(täytä, mikäli kohde kuuluu ETS-sopimukseen)"]
[null,"Sopimuksen toimiala"]
[null,"Liittyjän nimi"]
[null,"Liittymisnumero"]
[null,"Toimipaikan nimi"]
[null,"Toimipaikan numero"]

{"sheet":"Energia","index":1,"n_rows":54,"n_cols":14,"rows_kept":54,"merged":[[27,1,27,5],[27,7,27,11],[55,1,55,7]]}
[{"$f":"Kohdetiedot!A1","v":"Päätaulu Täsmäkatselmus"},null,null,"Taulukko 1",null,"diaari",null,{"$f":"CONCATENATE(Kohdetiedot!E3,\"/\",Kohdetiedot!G3,\"/\",Kohdetiedot!I3)","v":"/31/"}]
[]
[]
[{"$nulls":13},"Täytä vihreällä merkityt solut"]
[null,"Nykyinen kulutus",null,"Säästöpotentiaali",{"$nulls":5},"Kokonaisinvestointi",{"$nulls":3},"Sinisellä merkittyjen solujen arvo lasketaan"]
[]
[null,{"$f":"IF(ISBLANK(Kohdetiedot!C6),\"\",(YEAR(Kohdetiedot!C6)-1))","v":""}]
[null,"Lämpö + polttoaineet"]
[null,{"$f":"D32+D36+D38+D40+D44+D46","v":{"v":0,"d":" 0"}},"MWh/a",{"$f":"Toimenpiteet!J38","v":{"v":0,"d":" 0"}},null,"MWh/a",null,{"$f":"+IF(B9<>0,D9/B9*100,\"\")","v":""},"%",{"v":0,"d":" 0"},null,"EUR",null,"Lämpö+polttoaineet lasketaan riveillä 28-46 annetuista tiedoista"]
[null,{"$f":"F32+F36+F38+F40+F44+F46","v":{"v":0,"d":" 0"}},"EUR/a",{"$f":"Toimenpiteet!N38+Toimenpiteet!P38","v":{"v":0,"d":" 0"}},null,"EUR/a",null,{"$f":"+IF(B10<>0,D10/B10*100,\"\")","v":""},"%",{"$nulls":4},"Jos kohteella on pelkää sähkölämmitystä jää Lämpö+polttoaineet kohta tyhjäksi"]
[{"$nulls":3},{"$f":"Toimenpiteet!L38","v":{"v":0,"d":" 0"}},null,"t CO2/a"]
[null,"Sähkö"]
[null,null,"MWh/a",{"$f":"Toimenpiteet!V38","v":{"v":0,"d":" 0"}},null,"MWh/a",null,{"$f":"+IF(B13<>0,D13/B13*100,\"\")","v":""},"%",{"v":0,"d":" 0"},null,"EUR",null,"Sähkön kokonaiskulutus ilmoitetaan tällä rivillä (solu B13)"]
[null,null,"EUR/a",{"$f":"Toimenpiteet!Z38+Toimenpiteet!AB38","v":{"v":0,"d":" 0"}},null,"EUR/a",null,{"$f":"+IF(B14<>0,D14/B14*100,\"\")","v":""},"%"]
[{"$nulls":3},{"$f":"Toimenpiteet!X38","v":{"v":0,"d":" 0"}},null,"t CO2/a",null,""]
[null,"Vedenkulutus"]
[null,null,"m3/a",{"$f":"Toimenpiteet!AD38","v":{"v":0,"d":" 0"}},null,"m3/a",null,{"$f":"+IF(B17<>0,D17/B17*100,\"\")","v":""},"%",{"v":0,"d":" 0"},null,"EUR"]
[null,null,"EUR/a",{"$f":"Toimenpiteet!AF38","v":{"v":0,"d":" 0"}},null,"EUR/a",null,{"$f":"+IF(B18<>0,D18/B18*100,\"\")","v":""},"%"]
[]
[null,"Kulutukset yhteensä",null,"Säästöt yhteensä",{"$nulls":5},"Investoinnit yhteensä"]
[]
[]
[null,{"$f":"B10+B14+B18","v":{"v":0,"d":" 0"}},"EUR/a",{"$f":"D10+D14+D18","v":{"v":0,"d":" 0"}},null,"EUR/a",null,{"$f":"+IF(B23<>0,D23/B23*100,\"\")","v":""},"%",{"$f":"Toimenpiteet!F38","v":{"v":0,"d":" 0"}},null,"EUR"]
[{"$nulls":3},{"$f":"D11+D15","v":{"v":0,"d":" 0"}},null,"t CO2/a",null,""]
[]
[]
[]
[null,"Lämmön + polttoaineiden kulutus energianlähteittäin",{"$nulls":5},"Sähkölämmityksen \nosuus sähköenergiasta"]
[{"$nulls":3},"Kulutus",null,"Kustannukset",{"$nulls":3},"Kulutus",null,"Kustannukset"]
[{"$nulls":3},"MWh",null,"€/a",{"$nulls":3},"MWh",null,"€/a"]
[]
[null,"Lämpö",{"$nulls":6},"Lämmityssähkö",{"$nulls":4},"Sähkölämmityksen osuus sähkökulutuksesta ilmoitetaan solussa J32"]
[]
[null,"Polttoaineet"]
[]
[null,"Fossiiliset polttaineet"]
[]
[null,"Uusiutuvat polttoaineet"]
[]
[null,"Turve"]
[]
[]
[]
[null,"Höyry"]
[]
[null,"Muu"]
[]
[]
[]
[null,"Lämmityssähkö"]
[]
[null,"Muu sähkönkäyttö"]
[]
[null,"Normituksen vertailupaikkakunta"]

{"sheet":"Toimenpiteet","index":2,"n_rows":38,"n_cols":37,"rows_kept":38,"merged":[[3,31,3,33],[5,9,5,15],[5,17,5,20],[5,21,5,27],[5,29,5,31],[5,34,9,34],[5,35,9,35],[6,9,6,15],[6,21,6,27],[6,29,6,31],[7,13,7,15],[7,25,7,27]]}
[null,{"$f":"Energia!A1","v":"Päätaulu Täsmäkatselmus"},null,"Taulukko 2",{"$nulls":30},"tämä sarake piilotetaan lopullisessa, mutta tämä on siis tieto joka viedään kantaan"]
[]
[]
[null,{"$f":"CONCATENATE(Kohdetiedot!E3,\"/\",Kohdetiedot!G3,\"/\",Kohdetiedot!I3)","v":"/31/"},{"$nulls":29},{"$f":"Kohdetiedot!C6","v":"00:00:00"}]
[null,{"$f":"Kohdetiedot!C11","v":0}]
[null,null,"TOIMENPITEEN","SÄÄSTÖ","TMA","INVES-",null,"CO2",null,"SÄÄSTÖ",{"$nulls":11},"SÄÄSTÖ",{"$nulls":7},"SÄÄSTÖ",{"$nulls":3},"SÄÄSTÖN","Toimenpide-koodi","TOIMENPITEEN LUOKITTELU","SOVITUT"]
[null,null,"KUVAUS","YHTEENSÄ",null,"TOINTI",null,"VÄHENEMÄ",null,"LÄMPÖ",{"$nulls":11},"SÄHKÖ",{"$nulls":7},"VESI",{"$nulls":3},"ELINIKÄ",null,null,"JATKO-"]
[{"$nulls":7},"YHTEENSÄ",null,"energia",null,"CO2",null,"kustannukset",{"$nulls":7},"energia",null,"CO2",null,"kustannukset",{"$nulls":3},"vesi",null,"kustan-",null,"arvio",null,null,"TOIMET"]
[{"$nulls":13},"energia",null,"muut",{"$nulls":9},"energia",null,"muut",{"$nulls":3},"nukset"]
[null,"no"," ","EUR/a","a","EUR",null,"t/a",null,"MWh/a",null,"t/a",null,"EUR/a",null,"EUR/a",{"$nulls":5},"MWh/a",null,"t/a",null,"EUR/a",null,"EUR/a",null,"m3/a",null,"EUR/a",null,"a",null,null," T,P,H,E"]
[null,1,null,{"$f":"N11+P11+Z11+AB11+AF11","v":0},{"$f":"IF(F11>0,F11/D11,0)","v":{"v":0,"d":"0.0"}},null,null,{"$f":"L11+X11","v":0},{"$nulls":26},{"$f":"IF(ISBLANK(AJ11),\"\",VLOOKUP(AJ11,Luokitukset!$Q$12:$R$53,2,FALSE))","v":""}]
[null,2,null,{"$f":"N12+P12+Z12+AB12+AF12","v":0},{"$f":"IF(F12>0,F12/D12,0)","v":{"v":0,"d":"0.0"}},null,null,{"$f":"L12+X12","v":0},{"$nulls":26},{"$f":"IF(ISBLANK(AJ12),\"\",VLOOKUP(AJ12,Luokitukset!$Q$12:$R$53,2,FALSE))","v":""}]
[null,3,null,{"$f":"N13+P13+Z13+AB13+AF13","v":0},{"$f":"IF(F13>0,F13/D13,0)","v":{"v":0,"d":"0.0"}},null,null,{"$f":"L13+X13","v":0},{"$nulls":26},{"$f":"IF(ISBLANK(AJ13),\"\",VLOOKUP(AJ13,Luokitukset!$Q$12:$R$53,2,FALSE))","v":""}]
[null,4,null,{"$f":"N14+P14+Z14+AB14+AF14","v":0},{"$f":"IF(F14>0,F14/D14,0)","v":{"v":0,"d":"0.0"}},null,null,{"$f":"L14+X14","v":0},{"$nulls":26},{"$f":"IF(ISBLANK(AJ14),\"\",VLOOKUP(AJ14,Luokitukset!$Q$12:$R$53,2,FALSE))","v":""}]
[null,5,null,0,{"v":0,"d":"0.0"},null,null,0,{"$nulls":26},{"$f":"IF(ISBLANK(AJ15),\"\",VLOOKUP(AJ15,Luokitukset!$Q$12:$R$53,2,FALSE))","v":""}]
[null,6,null,0,{"v":0,"d":"0.0"},null,null,0,{"$nulls":26},{"$f":"IF(ISBLANK(AJ16),\"\",VLOOKUP(AJ16,Luokitukset!$Q$12:$R$53,2,FALSE))","v":""}]
[null,7,null,0,{"v":0,"d":"0.0"},null,null,0,{"$nulls":26},{"$f":"IF(ISBLANK(AJ17),\"\",VLOOKUP(AJ17,Luokitukset!$Q$12:$R$53,2,FALSE))","v":""}]
[null,8,null,0,{"v":0,"d":"0.0"},null,null,0,{"$nulls":26},{"$f":"IF(ISBLANK(AJ18),\"\",VLOOKUP(AJ18,Luokitukset!$Q$12:$R$53,2,FALSE))","v":""}]
[null,9,null,0,{"v":0,"d":"0.0"},null,null,0,{"$nulls":26},{"$f":"IF(ISBLANK(AJ19),\"\",VLOOKUP(AJ19,Luokitukset!$Q$12:$R$53,2,FALSE))","v":""}]
[null,10,null,0,{"v":0,"d":"0.0"},null,null,0,{"$nulls":26},{"$f":"IF(ISBLANK(AJ20),\"\",VLOOKUP(AJ20,Luokitukset!$Q$12:$R$53,2,FALSE))","v":""}]
[null,11,null,0,{"v":0,"d":"0.0"},null,null,0,{"$nulls":26},{"$f":"IF(ISBLANK(AJ21),\"\",VLOOKUP(AJ21,Luokitukset!$Q$12:$R$53,2,FALSE))","v":""}]
[null,12,null,0,{"v":0,"d":"0.0"},null,null,0,{"$nulls":26},{"$f":"IF(ISBLANK(AJ22),\"\",VLOOKUP(AJ22,Luokitukset!$Q$12:$R$53,2,FALSE))","v":""}]
[null,13,null,0,{"v":0,"d":"0.0"},null,null,0,{"$nulls":26},{"$f":"IF(ISBLANK(AJ23),\"\",VLOOKUP(AJ23,Luokitukset!$Q$12:$R$53,2,FALSE))","v":""}]
[null,14,null,0,{"v":0,"d":"0.0"},null,null,0,{"$nulls":26},{"$f":"IF(ISBLANK(AJ24),\"\",VLOOKUP(AJ24,Luokitukset!$Q$12:$R$53,2,FALSE))","v":""}]
[null,15,null,0,{"v":0,"d":"0.0"},null,null,0,{"$nulls":26},{"$f":"IF(ISBLANK(AJ25),\"\",VLOOKUP(AJ25,Luokitukset!$Q$12:$R$53,2,FALSE))","v":""}]
[null,16,null,0,{"v":0,"d":"0.0"},null,null,0,{"$nulls":26},{"$f":"IF(ISBLANK(AJ26),\"\",VLOOKUP(AJ26,Luokitukset!$Q$12:$R$53,2,FALSE))","v":""}]
[null,17,null,0,{"v":0,"d":"0.0"},null,null,0,{"$nulls":26},{"$f":"IF(ISBLANK(AJ27),\"\",VLOOKUP(AJ27,Luokitukset!$Q$12:$R$53,2,FALSE))","v":""}]
[null,18,null,0,{"v":0,"d":"0.0"},null,null,0,{"$nulls":26},{"$f":"IF(ISBLANK(AJ28),\"\",VLOOKUP(AJ28,Luokitukset!$Q$12:$R$53,2,FALSE))","v":""}]
[null,19,null,0,{"v":0,"d":"0.0"},null,null,0,{"$nulls":26},{"$f":"IF(ISBLANK(AJ29),\"\",VLOOKUP(AJ29,Luokitukset!$Q$12:$R$53,2,FALSE))","v":""}]
[null,20,null,0,{"v":0,"d":"0.0"},null,null,0,{"$nulls":26},{"$f":"IF(ISBLANK(AJ30),\"\",VLOOKUP(AJ30,Luokitukset!$Q$12:$R$53,2,FALSE))","v":""}]
[null,21,null,0,{"v":0,"d":"0.0"},null,null,0,{"$nulls":26},{"$f":"IF(ISBLANK(AJ31),\"\",VLOOKUP(AJ31,Luokitukset!$Q$12:$R$53,2,FALSE))","v":""}]
[null,22,null,0,{"v":0,"d":"0.0"},null,null,0,{"$nulls":26},{"$f":"IF(ISBLANK(AJ32),\"\",VLOOKUP(AJ32,Luokitukset!$Q$12:$R$53,2,FALSE))","v":""}]
[null,23,null,0,{"v":0,"d":"0.0"},null,null,0,{"$nulls":26},{"$f":"IF(ISBLANK(AJ33),\"\",VLOOKUP(AJ33,Luokitukset!$Q$12:$R$53,2,FALSE))","v":""}]
[null,24,null,0,{"v":0,"d":"0.0"},null,null,0,{"$nulls":26},{"$f":"IF(ISBLANK(AJ34),\"\",VLOOKUP(AJ34,Luokitukset!$Q$12:$R$53,2,FALSE))","v":""}]
[null,25,null,0,{"v":0,"d":"0.0"},null,null,0,{"$nulls":26},{"$f":"IF(ISBLANK(AJ35),\"\",VLOOKUP(AJ35,Luokitukset!$Q$12:$R$53,2,FALSE))","v":""}]
[null,26,null,{"$f":"N36+P36+Z36+AB36+AF36","v":0},{"$f":"IF(F36>0,F36/D36,0)","v":{"v":0,"d":"0.0"}},null,null,{"$f":"L36+X36","v":0},{"$nulls":26},{"$f":"IF(ISBLANK(AJ36),\"\",VLOOKUP(AJ36,Luokitukset!$Q$12:$R$53,2,FALSE))","v":""}]
[{"$nulls":3},0,{"$nulls":3},0]
[null,null,"YHTEENSÄ",{"$f":"SUM(D11:D37)","v":0},{"$f":"IF(F38>0,F38/D38,0)","v":{"v":0,"d":"0.0"}},{"$f":"SUM(F11:F37)","v":0},null,{"$f":"SUM(H11:H37)","v":0},null,{"$f":"SUM(J11:J37)","v":0},null,{"$f":"SUM(L11:L37)","v":0},null,{"$f":"SUM(N11:N37)","v":0},null,{"$f":"SUM(P11:P37)","v":0},{"$nulls":5},{"$f":"SUM(V11:V37)","v":0},null,{"$f":"SUM(X11:X37)","v":0},null,{"$f":"SUM(Z11:Z37)","v":0},null,{"$f":"SUM(AB11:AB37)","v":0},null,{"$f":"SUM(AD11:AD37)","v":0},null,{"$f":"SUM(AF11:AF37)","v":0}]

{"sheet":"Tarkastuslista","index":3,"n_rows":50,"n_cols":5,"rows_kept":50,"merged":[[4,1,4,3]]}
[{"$f":"CONCATENATE(Energia!A1,\"      \",B3)","v":"Päätaulu Täsmäkatselmus      Tarkastuslista"},null,null,{"$f":"CONCATENATE(\"diaari \",Kohdetiedot!E3,\"/\",Kohdetiedot!G3,\"/\",Kohdetiedot!I3)","v":"diaari /31/"},"Tämä sarake piilotetaan lopullisesta"]
[]
[null,"Tarkastuslista"]
[]
[null,"Täytä C-sarakkeeseen K tai E, sen mukaan löytyykö kyseinen järjestelmä/kohde. Mikäli järjestelmä/kohde löytyy (C-sarakkeen arvo K) täytä sarakkeeseen D tieto onko kyseinen järjestelmä/kohde tarkasteltu katselmuksessa."]
[]
[null,"Järjestelmä tai kohde","Löytyy kohteesta (K=kyllä tai E=ei)","Tarkasteltu katselmuksessa (K=kokonaisuudessaan, O=osittain tai E=ei lainkaan)"]
[null,"Lämmitysjärjestelmä",null,null,100]
[null,"Lämmöntuotto",null,null,101]
[null,"Lämmönjako",null,null,102]
[null,"Lämmitysverkoston säätö- ja asetusarvot",null,null,103]
[null,"Sisälämpötilatasot",null,null,104]
[null,"Ilmanvaihtojärjestelmä",null,null,200]
[null,"Ilmanvaihdon asetusarvot",null,null,201]
[null,"Lämmöntalteenotto",null,null,202]
[null,"Tarpeenmukainen ilmanvaihto",null,null,203]
[null,"Käyttövesijärjestelmä",null,null,300]
[null,"Vedensäästötoimenpiteet",null,null,301]
[null,"Jäähdytysjärjestelmä",null,null,400]
[null,"Jäähdytyksen asetusarvot",null,null,401]
[null,"Jäähdytyksen parannustoimet",null,null,402]
[null,"Paineilmajärjestelmä",null,null,500]
[null,"Hukkalämmön hyödyntäminen",null,null,501]
[null,"Paineilman tuotanto",null,null,502]
[null,"Paineilmavuodot",null,null,503]
[null,"Höyry- ja lauhde järjestelmä",null,null,600]
[null,"Rakenteet",null,null,700]
[null,"Aurinkosähköjärjestelmä",null,null,800]
[null,"Aurinkosähkön lisäämisen potentiaali",null,null,801]
[null,"Muu uusiutuva energia",null,null,900]
[null,"Uusiutuvan energian käytön lisääminen",null,null,901]
[null,"Valaistus",null,null,1000]
[null,"Valaisinten muutos",null,null,1001]
[null,"Valaistuksen ohjaus",null,null,1002]
[null,"Energiantuotanto",null,null,1100]
[null,"Prosessi ja prosessilaitteet",null,null,1200]
[null,"Muu",null,null,1300]
[null,"Automaatiojärjestelmät",null,null,1301]
[null,"Energian mittaus ja kulutusseuranta",null,null,1302]
[null,"Energianhallinta ja johtaminen",null,null,1303]
[null,"Kysyntäjoustomahdollisuudet",null,null,1304]
[null,"Ylijäämälämmön hyödyntäminen",null,null,1305]
[null,"Uuden teknologian mahdollisuudet",null,null,1306]
[null,"Vähähiilisyystarkastelut",null,null,1307]
[null,"Sähkön tai lämmön tariffit",null,null,1308]
[]
[null,"Tilaajan edustaja ja katselmoija ovat käyneet yhdessä läpi tämän listan"]
[null,"Päiväys"]
[]
[null,"Tilaajan edustajan nimi",null,"Katselmoijan nimi"]

{"sheet":"Ohjeita","index":4,"n_rows":42,"n_cols":3,"rows_kept":42}
[{"$f":"Energia!A1","v":"Päätaulu Täsmäkatselmus"},null,"Ohjesivu"]
["2021-08-13"]
[null,"Yleisiä ohjeita energiakatselmuksen päätaulun toimittamiseen"]
[null,null,"Muista tarkistaa, että käytössäsi on viimeisin versio päätaulusta. Viimeisimmän lomakkeen löydät Energiakatselmoijien extranetistä alla olevan linkin kautta:"]
[null,null,"https://www.motiva.fi/extranet/energiakatselmoijat/raporttien_ja_paataulujen_siirto_motivaan"]
[null,null,"Tämän siirtotiedoston tiedot siirretään ohjelmallisesti katselmusten seurantajärjestelmään. Tiedoston rakennetta (esim. välilehtien määrää) tai tietojen sijoittelua välilehdillä ei saa muuttaa."]
[null,null,"Täytä päätauluun kaikki tarvittavat tiedot. Puutteellisesti täytetystä päätaulusta lähetetään toimittajalle täydennyspyyntö viimeistään katselmusten laadunvarmistuksen yhteydessä."]
[null,"Päätaulun palautus"]
[null,null,"Päätaulu ja katselmusraportti toimitetaan Motivaan sähköisesti Motivan extranetsivujen kautta (Päätaulujen siirtopalvelu)"]
[null,null,"www.motiva.fi/extranet"]
[null,null,"Palvelun käyttö edellyttää, että katselmoijalla on käyttäjätunnukset Motivan energiakatselmoijien extranetpalveluun. Käyttäjätunnukset lähetetään energiakatselmusten peruskurssin ja siihen liittyvän tentin hyväksytysti suorittaneille katselmoijille. Jos sinulla ei vielä ole käyttäjätunnuksia, lähetä tunnuspyyntö osoitteeseen katselmoijaposti@motiva.fi"]
[null,null,"Tiedostot siirretään katselmustukipäätöksessä olevan hankkeen diaarinumeron perusteella, joka on oltava tiedossa ennen siirtoa. Mikäli diaaria ei löydy siirtopalvelusta tai siirrossa on muita ongelmia, ottakaa yhteyttä Ritva Isohellaan, ritva.isohella@motiva.fi."]
[null,null,"Energiakatselmustukea katselmukselle ei voida maksaa ennen kuin katselmusraportit ja päätaulu-tiedostot on toimitettu!"]
[null,"Kohdetiedot välilehti"]
[null,null,"Hankkeen diaarinumero täytetää Business Finlandin tukipäätöksen mukaisesti"]
[null,null,"Raportin päiväys täytetään viimeisimmän asiakkaan hyväksymän version mukaisesti"]
[null,null,"Toimiala (TOL2008) ja rakennustyyppi (Rakennustyyppiluokitus 2018) valitaan valintalistoista. Luokitukset noudattavat Tilastokeskuksen luokituksia"]
[null,null,"Pinta-alaksi syötetään kohteen lämmitetty kerrosala"]
[null,null,"Mikäli yritys on liittynyt energiatehokkuussopimukseen, katselmus linkitetään näkyviin energiatehokkuussopimusten seurantajärjestelmään. Tällöin linkitettyjen energiakatselmusten toimenpide-ehdotukset tulevat automaattisesti näkyviin energiatehokkuussopimusten vuosiraportille. Täytä vähintään Sopimuksen toimiala, Liittyjän nimi ja Toimipaikan nimi vuosiraportoinnissa.\nLinkitykseen tarvittavat tiedot saadaan energiatehokkuussopimusten seurantajärjestelmästä (esim. vuosiraportin ensimmäiseltä sivulta)."]
[null,"Energia välilehti (taulukko 1.)"]
[null,null,"Energia-välilehdellä tiedot täydennetään vihreällä merkittyihin soluihin. Lämmön ja polttoaineiden tiedot (solut B15 ja B16) lasketaan Energia-välilehdellä syötetyistä muista tiedoista"]
[null,null,"Ilmoita taulukon otsikko-osan solussa (B13) energiatietojen vuosi neljällä numerolla. Oletuksena solussa näkyy energiatietojen vuotena kohdekatselmusraportin päiväystä edeltävä vuosi (tieto linkittyy Perustiedot-välilehdeltä). Tarkista ja korjaa tieto tarvittaessa"]
[null,null,"Lämmityksen energiankulutus raportoidaan aina normitettuna ja normituspaikkakunta ilmoitetaan sivun alaosassa. \nLisätietoja normituksesta"]
[null,null,"www.motiva.fi/kulutuksennormitus"]
[null,null,"Säästöpotentiaaleja koskevat tiedot (MWh/a ja €/a) linkittyvät Energia-välilehdelle automaattisesti Toimenpiteet-välilehdeltä."]
[null,"Toimenpiteet välilehti (taulukko 2.)"]
[null,null,"”Toimenpiteen kuvaus” -kentästä tulee selkeästi käydä ilmi säästötoimenpide eli mitä on tehty."]
[null,null,"Sarakkeen ”Säästö yhteensä” (€/a) tieto lasketaan automaattisesti yhteen sarakkeissa ”Lämpö”, ”Sähkö” ja ”Vesi” raportoiduista kustannussäästöistä (€/a)"]
[null,null,"Takaisinmaksuaika (”TMA”) lasketaan sarakkeiden ”Investointi” ja ”Kustannussäästö yhteensä” tiedoista (Investointi/Kustannussäästö yhteensä)."]
[null,null,"Sarakkeen ”CO2 vähenemä yhteensä” (t/a) tieto lasketaan automaattisesti yhteen sarakkeissa ”Lämpö”, ”Sähkö” ja ”Vesi” raportoiduista CO2 vähenemistä (t/a)"]
[null,null,"”Investointi”-sarakkeeseen ilmoitetaan toimenpiteen vaatima arvioitu investointikustannus (€). Mikäli kyseessä on peruskorjaus, ilmoitetaan arvio energiatehokkuuteen vaikuttavasta investoinnin osuudesta."]
[null,null,"”Säästö”-sarakkeissa (”Lämpö”, ”Sähkö” ja ”Vesi”) raportoidaan katselmuksessa ehdotettujen toimenpiteiden vuotuinen energian- ja kustannussäästöpotentiaali (MWh/a, €/a) sekä CO2 päästövähenemä (t/a). Toimenpide-ehdotusten kustannussäästöpotentiaalissa (€/a) erotellaan energiansäästöstä (Lämpö, Sähkö) johtuva kustannussäästö, ja muu esim. tariffi tai tilausteho muutoksista johtuva kustannussäästö omille sarakkeilleen (energia ja muu)."]
[null,null,"\"Säästön elinikä\" -sarakkeessa ilmoitetaan toimenpide-ehdotuksen arvio säästön eliniästä. Elinikä kertoo kuinka monta vuotta (toteutusvuodesta eteenpäin) toimenpide tulee tuottamaan säästöä. Ilmoita numero kokonaislukuna. Arvioinnissa voi käyttää apuna energiatehokkuussopimusten säästövaikutusten laskenta ja dokumentointi -ohjeeseen liittyvää Ohjeelliset eliniät-taulukkoa."]
[null,null,"https://energiatehokkuussopimukset2017-2025.fi/aineistot-ja-ohjeet/teollisuusala/saastojen-laskenta/"]
[null,null,"Toimenpiteen kohde -sarakkeessa valitaan listalta toimenpidettä parhaiten kuvaava luokittelu. Ohjeita luokitteluun löytyy Katselmoija Extranetistä"]
[null,null,"Toimenpiteiden luokitteluohje"]
[null,null,"Sovitut jatkotoimet -sarakkeessa ilmoitetaan toimenpide-ehdotuksille tämänhetkinen arvio toteutuksesta joka on sovittu yhteistyössä tilaajan kanssa katselmuksen lopetuspalaverissa (T=toteutettu, P=päätetty toteuttaa, H=harkitaan toteutettavaksi, E=ei toteuteta)."]
[null,"Tarkastuslista välilehti"]
[null,null,"Tarkastuslista välilehden on tarkoitus tuoda esille kohteen katselmuksen laajuus ja toisaalta ohjata tarkastelemaan kohde mahdollisimman kattavasti ja havainnoimaan tärkeimmät säästökohteet katselmuksissa. Tämä ei kuitenkaan velvoita tekemään tarkasteluita listan mukaisessa laajuudessa, vaan kussakin kohteessa tehdään katselmoijan näkemyksen mukaiset tärkeimmät tarkastelut."]
[null,null,"Tilaaja ja katselmoija merkitsevät tarkastuslistan alle omat nimensä ja päivämäärän, kun tarkastuslista on käyty läpi tilaajan ja katselmoijan kesken."]
[null,null,"\"Löytyy kohteesta\" -sarakeeseen merkitään tieto löytyykö järjestelmä/tarkastelun kohde katselmuskohteesta. Vihreällä maalattuihin soluihin tulee kirjata joko K jos järjestelmä löytyy tai E jos järjestelmää ei löydy. Valkoisiin soluihin kirjataan K jos tarkastelu on tehty. Harmaat solut ovat lukittuja, niihin ei tietoa voi syöttää."]
[null,null,"\"Tarkasteltu katselmuksessa\" sarakkeessa merkitään kirjain kullekin riville, jos sitä on tarkasteltu katselmuksessa ja arvioidaan tarkastelun laajuutta (K=kokonaisuudessan, O=osittain, E=ei lainkaan). Mikäli järjestelmää ei ole käytössä, jätä tyhjäksi. Ole rehellinen, kaikkea ei tarvitse käydä läpi, tämä on vain informatiivinen tieto."]

{"sheet":"Luokitukset","index":5,"n_rows":371,"n_cols":27,"rows_kept":371}
[{"$f":"Kohdetiedot!A1","v":"Päätaulu Täsmäkatselmus"}]
[{"$f":"Kohdetiedot!B2","v":"2021-08-13"}]
[]
[{"$nulls":5},"tämä sarake piilotetaan","tämä sarake piilotetaan",{"$nulls":3},"tämä sarake piilotetaan","tämä sarake piilotetaan",{"$nulls":4},"tämä sarake piilotetaan",{"$nulls":4},"tämä sarake piilotetaan"]
[null,null,"Tältä välilehdeltä haetaan vaihtoehdot Kohdetiedot ja Toimenpiteet -välilehtien Rakennustyyppi, Toimialaluokka, Toimenpideohjelma ja Toimenpiteiden luokittelu kohtiin."]
[]
[]
[null,null,"Rakennustyyppi",null,null,"Rakennustyyppi",null,null,"Toimiala",null,"Toimiala",{"$nulls":3},"Säästötoimenpiteiden luokittelu",{"$nulls":4},"Toimenpideohjelma/Sopimus",{"$nulls":4},"Tarkastuslistan vaihtoehdot"]
[null,null,"Perustuu Tilastokeskuksen luokitukseen vuodelta 2018",null,null,"Perustuu Tilastokeskuksen luokitukseen vuodelta 2018",null,null,"Tilastokeskuksen toimialaluokitus TOL2008",null,"Tilastokeskuksen toimialaluokitus TOL2008",null,null,"Ohje toimenpiteiden luokitteluun löytyy energiakatselmoijien Extranetistä alla linkki"]
[{"$nulls":14},"Toimenpiteiden luokitteluohje"]
[null,"Koodi","Rakennustyypin nimi","Koodi",null,"Rakennustyypin nimi","Koodi",null,"Toimiala (TOL2008)","TOL koodi","Toimiala","TOL koodi",null,"Koodi","Toimenpideluokka",null,"Toimenpideluokka","Koodi",null,"Toimenpideohjelma/Sopimus",null,"Toimenpideohjelma",null,"Toteutusvaihe","Löytyy kohteesta",null,"Tarkasteltu katselmuksessa"]
[null,"01",{"$f":"F12","v":"Asuinrakennukset"},{"$f":"G12","v":"01"},null,"Asuinrakennukset","01",null,{"$f":"K12","v":"00 Toimiala tuntematon"},{"$f":"L12","v":"00"},"00 Toimiala tuntematon","00",null,"4.1","Lämmitysjärjestelmä",null,"4.1 Lämmitysjärjestelmä","4.1",null,"Elinkeinoelämän toimenpideohjelmant",null,"Elinkeinoelämä - Elintarviketeollisuus",null,"T","K",null,"K"]
[null,"011",{"$f":"F13","v":"Pientalot"},"011",null,"Pientalot","011",null,{"$f":"K13","v":"01 Kasvinviljely ja kotieläintalous, riistatalous ja niihin liittyvät palvelut"},"01","01 Kasvinviljely ja kotieläintalous, riistatalous ja niihin liittyvät palvelut","01",null,"4.1.1","Lämmöntuotto",null,"4.1.1 Lämmöntuotto","4.1.1",null,"Teollisuus",null,"Elinkeinoelämä - Kemianteollisuus",null,"P","E",null,"O"]
[null,"012","Kerrostalot","012",null,"Kerrostalot","012",null,"011 Yksivuotisten kasvien viljely","011","011 Yksivuotisten kasvien viljely","011",null,"4.1.2","Lämmitysverkosto ja sisälämpötilan alentaminen ",null,"4.1.2 Lämmitysverkosto ja sisälämpötilan alentaminen ","4.1.2",null," Elintarviketeollisuus",null,"Elinkeinoelämä - Muoviteollisuus",null,"H",null,null,"E"]
[null,"013","Asuntolarakennukset","013",null,"Asuntolarakennukset","013",null,"012 Monivuotisten kasvien viljely","012","012 Monivuotisten kasvien viljely","012",null,"4.1.3","Säädön parantaminen",null,"4.1.3 Säädön parantaminen","4.1.3",null," Kemianteollisuus",null,"Elinkeinoelämä - Puutuoteteollisuus",null,"E"]
[null,"014","Erityisryhmien asuinrakennukset","014",null,"Erityisryhmien asuinrakennukset","014",null,"013 Taimien kasvatus ja muu kasvien lisääminen","013","013 Taimien kasvatus ja muu kasvien lisääminen","013",null,"4.1.5","Eristykset - putkieristykset, säiliöeristykset",null,"4.1.5 Eristykset - putkieristykset, säiliöeristykset","4.1.5",null," Muoviteollisuus",null,"Elinkeinoelämä - Teknologiateollisuus"]
[null,"02","Vapaa-ajan asuinrakennukset","02",null,"Vapaa-ajan asuinrakennukset","02",null,"014 Kotieläintalous","014","014 Kotieläintalous","014",null,"4.2","Ilmanvaihtojärjestelmä",null,"4.2 Ilmanvaihtojärjestelmä","4.2",null," Puutuoteteollisuus",null,"Elinkeinoelämä - Teollisuuden yleinen"]
[null,"03","Liikerakennukset","03",null,"Liikerakennukset","03",null,"015 Yhdistetty kasvinviljely ja kotieläintalous (sekatilat)","015","015 Yhdistetty kasvinviljely ja kotieläintalous (sekatilat)","015",null,"4.2.1","Ilmanvaihdon käyntiajat",null,"4.2.1 Ilmanvaihdon käyntiajat","4.2.1",null," Teknologiateollisuus",null,"Elinkeinoelämä - Energiavaltainen teollisuus"]
[null,"031","Myymälärakennukset","031",null,"Myymälärakennukset","031",null,"016 Maataloutta palveleva toiminta","016","016 Maataloutta palveleva toiminta","016",null,"4.2.2","Ilmavirran säätäminen",null,"4.2.2 Ilmavirran säätäminen","4.2.2",null," Teollisuuden yleinen",null,"Elinkeinoelämä - Kauppa"]
[null,"0310","Tukku- ja vähittäiskaupan myymälähallit","0310",null,"Tukku- ja vähittäiskaupan myymälähallit","0310",null,"017 Metsästys ja sitä palveleva toiminta","017","017 Metsästys ja sitä palveleva toiminta","017",null,"4.2.3","Ilmanvaihdon palvelualueiden osittaminen",null,"4.2.3 Ilmanvaihdon palvelualueiden osittaminen","4.2.3",null," Energiavaltainen teollisuus",null,"Elinkeinoelämä - MaRa"]
[null,"0311","Kauppakeskukset ja liike- ja tavaratalot","0311",null,"Kauppakeskukset ja liike- ja tavaratalot","0311",null,"02 Metsätalous ja puunkorjuu","02","02 Metsätalous ja puunkorjuu","02",null,"4.2.4","Ilmanvaihdon lämmityksen säätötavat",null,"4.2.4 Ilmanvaihdon lämmityksen säätötavat","4.2.4",null,"Palvelu",null,"Elinkeinoelämä - Auto"]
[null,"0319","Muut myymälärakennukset","0319",null,"Muut myymälärakennukset","0319",null,"021 Metsänhoito","021","021 Metsänhoito","021",null,"4.2.5","Lämmöntalteenotto",null,"4.2.5 Lämmöntalteenotto","4.2.5",null," Kauppa",null,"Elinkeinoelämä - Palvelun yleinen"]
[null,"032","Majoitusliikerakennukset","032",null,"Majoitusliikerakennukset","032",null,"022 Puunkorjuu","022","022 Puunkorjuu","022",null,"4.2.7","Puhallin tai järjestelmäuusinta",null,"4.2.7 Puhallin tai järjestelmäuusinta","4.2.7",null," MaRa",null,"Elinkeinoelämä - Energiapalvelut"]
[null,"0320","Hotellit","0320",null,"Hotellit","0320",null,"023 Luonnon tuotteiden keruu (pl. polttopuu)","023","023 Luonnon tuotteiden keruu (pl. polttopuu)","023",null,"4.3","Käyttövesijärjestelmä",null,"4.3 Käyttövesijärjestelmä","4.3",null," Auto",null,"Elinkeinoelämä - Energiantuotanto"]
[null,"0321","Motellit, hostellit ja vastaavat majoitusliikerakennukset","0321",null,"Motellit, hostellit ja vastaavat majoitusliikerakennukset","0321",null,"024 Metsätaloutta palveleva toiminta","024","024 Metsätaloutta palveleva toiminta","024",null,"4.3.1","Vesikalusteiden virtaaman rajoitus",null,"4.3.1 Vesikalusteiden virtaaman rajoitus","4.3.1",null," Palvelun yleinen",null,"Kiinteistöala - TETS"]
[null,"0322","Loma-, lepo- ja virkistyskodit","0322",null,"Loma-, lepo- ja virkistyskodit","0322",null,"03 Kalastus ja vesiviljely","03","03 Kalastus ja vesiviljely","03",null,"4.3.2","Vesikalusteiden vaihto",null,"4.3.2 Vesikalusteiden vaihto","4.3.2",null,"Energia-ala",null,"Kiinteistöala - VAETS"]
[null,"0329","Muut majoitusliikerakennukset","0329",null,"Muut majoitusliikerakennukset","0329",null,"031 Kalastus","031","031 Kalastus","031",null,"4.3.3","Käyttöveden lämpötilan alentaminen",null,"4.3.3 Käyttöveden lämpötilan alentaminen","4.3.3",null," Energiapalvelut",null,"Kunnat - KETS"]
[null,"033","Ravintolarakennukset ja vastaavat liikerakennukset","033",null,"Ravintolarakennukset ja vastaavat liikerakennukset","033",null,"032 Vesiviljely","032","032 Vesiviljely","032",null,"4.4","Sähkö",null,"4.4 Sähkö","4.4",null," Energiantuotanto",null,"Kunnat - KEO"]
[null,"04","Toimistorakennukset","04",null,"Toimistorakennukset","04",null,"05 Kivihiilen ja ruskohiilen kaivu","05","05 Kivihiilen ja ruskohiilen kaivu","05",null,"4.4.1","Tariffin ja jännitetason tarkistus ja loistehon kompensointi",null,"4.4.1 Tariffin ja jännitetason tark. ja loistehon kompensointi","4.4.1",null,"Kiinteistöalan toimenpideohjelmat"]
[null,"040","Toimistorakennukset","040",null,"Toimistorakennukset","040",null,"051 Kivihiilen kaivu","051","051 Kivihiilen kaivu","051",null,"4.4.2","Kuormitushuippujen tasaus ja kulutuksen ajoitus",null,"4.4.2 Kuormitushuippujen tasaus/kulutuksen ajoitus","4.4.2",null," Toimitilakiinteistöt (TETS)"]
[null,"05","Liikenteen rakennukset","05",null,"Liikenteen rakennukset","05",null,"052 Ruskohiilen kaivu","052","052 Ruskohiilen kaivu","052",null,"4.4.31","Valaisinuusinnat",null,"4.4.31 Valaisinuusinnat","4.4.31",null," Vuokra-asunnot (VAETS)"]
[null,"051","Liikenne- ja kuljetusalan rakennukset","051",null,"Liikenne- ja kuljetusalan rakennukset","051",null,"06 Raakaöljyn ja maakaasun tuotanto","06","06 Raakaöljyn ja maakaasun tuotanto","06",null,"4.4.32","Valaistusohjaukset",null,"4.4.32 Valaistusohjaukset","4.4.32",null,"Kuntien sopimukset"]
[null,"0510","Asemarakennukset ja terminaalit","0510",null,"Asemarakennukset ja terminaalit","0510",null,"061 Raakaöljyn tuotanto","061","061 Raakaöljyn tuotanto","061",null,"4.4.4","Sähköiset lämmitykset",null,"4.4.4 Sähköiset lämmitykset","4.4.4",null," Kuntien energiatehokkuussopimus (KETS)"]
[null,"0511","Ammattiliikenteen kaluston suojarakennukset","0511",null,"Ammattiliikenteen kaluston suojarakennukset","0511",null,"062 Maakaasun tuotanto","062","062 Maakaasun tuotanto","062",null,"4.4.6","Muut sähkölaitteet",null,"4.4.6 Muut sähkölaitteet","4.4.6",null," Kuntien energiatehokkuusohjelma (KEO)"]
[null,"0512","Ammattiliikenteen kaluston huoltorakennukset","0512",null,"Ammattiliikenteen kaluston huoltorakennukset","0512",null,"07 Metallimalmien louhinta","07","07 Metallimalmien louhinta","07",null,"4.4.7","Käyttötottumusten muutos",null,"4.4.7 Käyttötottumusten muutos","4.4.7"]
[null,"0513","Pysäköintitalot ja -hallit","0513",null,"Pysäköintitalot ja -hallit","0513",null,"071 Rautamalmien louhinta","071","071 Rautamalmien louhinta","071",null,"4.4.8","Aurinkosähkö",null,"4.4.8 Aurinkosähkö","4.4.8"]
[null,"0514","Kulkuneuvojen katokset","0514",null,"Kulkuneuvojen katokset","0514",null,"072 Värimetallimalmien louhinta","072","072 Värimetallimalmien louhinta","072",null,"4.5","Jäähdytysjärjestelmä",null,"4.5 Jäähdytysjärjestelmä","4.5"]
[null,"052","Tieto- ja viestintätekniikan rakennukset","052",null,"Tieto- ja viestintätekniikan rakennukset","052",null,"08 Muu kaivostoiminta ja louhinta","08","08 Muu kaivostoiminta ja louhinta","08",null,"4.5.1","Veden kulutus",null,"4.5.1 Veden kulutus","4.5.1"]
[null,"0520","Datakeskukset ja laitetilat","0520",null,"Datakeskukset ja laitetilat","0520",null,"081 Kiven louhinta, hiekan ja saven otto","081","081 Kiven louhinta, hiekan ja saven otto","081",null,"4.5.2","Lauhdelämmön talteenotto",null,"4.5.2 Lauhdelämmön talteenotto","4.5.2"]
[null,"0521","Tietoliikenteen rakennukset","0521",null,"Tietoliikenteen rakennukset","0521",null,"089 Muu mineraalien kaivu","089","089 Muu mineraalien kaivu","089",null,"4.5.3","Vedenjäähdytyskoneet ja kompressorit ",null,"4.5.3 Vedenjäähdytyskoneet ja kompressorit ","4.5.3"]
[null,"059","Muut liikenteen rakennukset","059",null,"Muut liikenteen rakennukset","059",null,"09 Kaivostoimintaa palveleva toiminta","09","09 Kaivostoimintaa palveleva toiminta","09",null,"4.5.4","Jäähdytysverkosto",null,"4.5.4 Jäähdytysverkosto","4.5.4"]
[null,"06","Hoitoalan rakennukset","06",null,"Hoitoalan rakennukset","06",null,"091 Raakaöljyn ja maakaasun tuotantoa palveleva toiminta","091","091 Raakaöljyn ja maakaasun tuotantoa palveleva toiminta","091",null,"4.5.5","Vapaajäähdytys",null,"4.5.5 Vapaajäähdytys","4.5.5"]
[null,"061","Terveydenhuoltorakennukset","061",null,"Terveydenhuoltorakennukset","061",null,"099 Muuta kaivostoimintaa ja louhintaa palveleva toiminta","099","099 Muuta kaivostoimintaa ja louhintaa palveleva toiminta","099",null,"4.6","Rakenteet",null,"4.6 Rakenteet","4.6"]
[null,"0610","Terveys- ja hyvinvointikeskukset","0610",null,"Terveys- ja hyvinvointikeskukset","0610",null,"10 Elintarvikkeiden valmistus","10","10 Elintarvikkeiden valmistus","10",null,"4.6.1","Ikkunat ja ovet",null,"4.6.1 Ikkunat ja ovet","4.6.1"]
[null,"0611","Keskussairaalat","0611",null,"Keskussairaalat","0611",null,"101 Teurastus, lihan säilyvyyskäsittely ja lihatuotteiden valmistus","101","101 Teurastus, lihan säilyvyyskäsittely ja lihatuotteiden valmistus","101",null,"4.6.2","Ulkovaippa",null,"4.6.2 Ulkovaippa","4.6.2"]
[null,"0612","Erikoissairaalat ja laboratoriorakennukset","0612",null,"Erikoissairaalat ja laboratoriorakennukset","0612",null,"102 Kalan, äyriäisten ja nilviäisten jalostus ja säilöntä","102","102 Kalan, äyriäisten ja nilviäisten jalostus ja säilöntä","102",null,"4.6.3","Vesikatto",null,"4.6.3 Vesikatto","4.6.3"]
[null,"0613","Muut sairaalat","0613",null,"Muut sairaalat","0613",null,"103 Hedelmien ja kasvisten jalostus ja säilöntä","103","103 Hedelmien ja kasvisten jalostus ja säilöntä","103",null,"4.7","Paineilmajärjestelmä",null,"4.7 Paineilmajärjestelmä","4.8"]
[null,"0614","Kuntoutuslaitokset","0614",null,"Kuntoutuslaitokset","0614",null,"104 Kasvi- ja eläinöljyjen ja -rasvojen valmistus","104","104 Kasvi- ja eläinöljyjen ja -rasvojen valmistus","104",null,"4.7.1","Paineilmajärjestelmän vuotojen korjaus",null,"4.7.1 Paineilmajärjestelmän vuotojen korjaus","4.8.1"]
[null,"0619","Muut terveydenhuoltorakennukset","0619",null,"Muut terveydenhuoltorakennukset","0619",null,"105 Maitotaloustuotteiden valmistus","105","105 Maitotaloustuotteiden valmistus","105",null,"4.7.2","Paineilman tuotanto",null,"4.7.2 Paineilman tuotanto","4.8.2"]
[null,"062","Sosiaalipalvelurakennukset","062",null,"Sosiaalipalvelurakennukset","062",null,"106 Mylly- ja tärkkelystuotteiden valmistus","106","106 Mylly- ja tärkkelystuotteiden valmistus","106",null,"4.7.3","Hukkalämmön hyödyntäminen",null,"4.7.3 Hukkalämmön hyödyntäminen","4.8.3"]
[null,"0620","Laitospalvelujen rakennukset","0620",null,"Laitospalvelujen rakennukset","0620",null,"107 Leipomotuotteiden, makaronien yms. valmistus","107","107 Leipomotuotteiden, makaronien yms. valmistus","107",null,"4.8","Rakennusautomaatio",null,"4.8 Rakennusautomaatio","4.7.2"]
[null,"0621","Avopalvelujen rakennukset","0621",null,"Avopalvelujen rakennukset","0621",null,"108 Muiden elintarvikkeiden valmistus","108","108 Muiden elintarvikkeiden valmistus","108",null,"4.9","Tuotantoprosessiin liittyvät toimenpiteet",null,"4.9 Tuotantoprosessiin liittyvät toimenpiteet","4.7.1"]
[null,"063","Vankilarakennukset","063",null,"Vankilarakennukset","063",null,"109 Eläinten ruokien valmistus","109","109 Eläinten ruokien valmistus","109",null,"5.0","Muut energiansäästömahdollisuudet",null,"5.0 Muut energiansäästömahdollisuudet","4.7"]
[null,"07","Kokoontumisrakennukset","07",null,"Kokoontumisrakennukset","07",null,"11 Juomien valmistus","11","11 Juomien valmistus","11"]
[null,"071","Kulttuurirakennukset","071",null,"Kulttuurirakennukset","071",null,"110 Juomien valmistus","110","110 Juomien valmistus","110"]
[null,"0710","Teatterit, musiikki- ja kongressitalot","0710",null,"Teatterit, musiikki- ja kongressitalot","0710",null,"12 Tupakkatuotteiden valmistus","12","12 Tupakkatuotteiden valmistus","12"]
[null,"0711","Elokuvateatterit","0711",null,"Elokuvateatterit","0711",null,"120 Tupakkatuotteiden valmistus","120","120 Tupakkatuotteiden valmistus","120"]
[null,"0712","Kirjastot ja arkistot","0712",null,"Kirjastot ja arkistot","0712",null,"13 Tekstiilien valmistus","13","13 Tekstiilien valmistus","13"]
[null,"0713","Museot ja taidegalleriat","0713",null,"Museot ja taidegalleriat","0713",null,"131 Tekstiilikuitujen valmistelu ja kehruu","131","131 Tekstiilikuitujen valmistelu ja kehruu","131"]
[null,"0714","Näyttely- ja messuhallit","0714",null,"Näyttely- ja messuhallit","0714",null,"132 Kankaiden kudonta","132","132 Kankaiden kudonta","132"]
[null,"072","Seura- ja kerhorakennukset","072",null,"Seura- ja kerhorakennukset","072",null,"133 Tekstiilien viimeistely","133","133 Tekstiilien viimeistely","133"]
[null,"073","Uskonnollisten yhteisöjen rakennukset","073",null,"Uskonnollisten yhteisöjen rakennukset","073",null,"139 Muiden tekstiilituotteiden valmistus","139","139 Muiden tekstiilituotteiden valmistus","139"]
[null,"0730","Uskonnonharjoittamisrakennukset","0730",null,"Uskonnonharjoittamisrakennukset","0730",null,"14 Vaatteiden valmistus","14","14 Vaatteiden valmistus","14"]
[null,"0731","Seurakuntatalot","0731",null,"Seurakuntatalot","0731",null,"141 Vaatteiden valmistus (pl. turkisvaatteet)","141","141 Vaatteiden valmistus (pl. turkisvaatteet)","141"]
[null,"0739","Muut uskonnollisten yhteisöjen rakennukset","0739",null,"Muut uskonnollisten yhteisöjen rakennukset","0739",null,"142 Turkisvaatteiden ja -tuotteiden valmistus","142","142 Turkisvaatteiden ja -tuotteiden valmistus","142"]
[null,"074","Urheilu- ja liikuntarakennukset","074",null,"Urheilu- ja liikuntarakennukset","074",null,"143 Neulevaatteiden ja sukkien valmistus","143","143 Neulevaatteiden ja sukkien valmistus","143"]
[null,"0740","Jäähallit","0740",null,"Jäähallit","0740",null,"15 Nahan ja nahkatuotteiden valmistus","15","15 Nahan ja nahkatuotteiden valmistus","15"]
[null,"0741","Uimahallit","0741",null,"Uimahallit","0741",null,"151 Nahan parkitseminen ja muokkaus; matka- ja käsilaukkujen, satuloiden ja valjaiden valmistus; turkisten muokkaus ja värjäys","151","151 Nahan parkitseminen ja muokkaus; matka- ja käsilaukkujen, satuloiden ja valjaiden valmistus; turkisten muokkaus ja värjäys","151"]
[null,"0742","Monitoimihallit","0742",null,"Monitoimihallit","0742",null,"152 Jalkineiden valmistus","152","152 Jalkineiden valmistus","152"]
[null,"0743","Urheilu- ja palloiluhallit","0743",null,"Urheilu- ja palloiluhallit","0743",null,"16 Sahatavaran sekä puu- ja korkkituotteiden valmistus (pl. huonekalut); olki- ja punontatuotteiden valmistus","16","16 Sahatavaran sekä puu- ja korkkituotteiden valmistus (pl. huonekalut); olki- ja punontatuotteiden valmistus","16"]
[null,"0744","Stadion- ja katsomorakennukset","0744",null,"Stadion- ja katsomorakennukset","0744",null,"161 Puun sahaus, höyläys ja kyllästys","161","161 Puun sahaus, höyläys ja kyllästys","161"]
[null,"0749","Muut urheilu- ja liikuntarakennukset","0749",null,"Muut urheilu- ja liikuntarakennukset","0749",null,"162 Puu-, korkki-, olki- ja punontatuotteiden valmistus","162","162 Puu-, korkki-, olki- ja punontatuotteiden valmistus","162"]
[null,"079","Muut kokoontumisrakennukset","079",null,"Muut kokoontumisrakennukset","079",null,"17 Paperin, paperi- ja kartonkituotteiden valmistus","17","17 Paperin, paperi- ja kartonkituotteiden valmistus","17"]
[null,"08","Opetusrakennukset","08",null,"Opetusrakennukset","08",null,"171 Massan, paperin, kartongin ja pahvin valmistus","171","171 Massan, paperin, kartongin ja pahvin valmistus","171"]
[null,"081","Varhaiskasvatuksen rakennukset","081",null,"Varhaiskasvatuksen rakennukset","081",null,"172 Paperi-, kartonki- ja pahvituotteiden valmistus","172","172 Paperi-, kartonki- ja pahvituotteiden valmistus","172"]
[null,"082","Yleissivistävien oppilaitosten rakennukset","082",null,"Yleissivistävien oppilaitosten rakennukset","082",null,"18 Painaminen ja tallenteiden jäljentäminen","18","18 Painaminen ja tallenteiden jäljentäminen","18"]
[null,"083",{"$f":"F77","v":"Ammatillisten oppilaitosten rakennukset"},"083",null,"Ammatillisten oppilaitosten rakennukset","083",null,{"$f":"K77","v":"181 Painaminen ja siihen liittyvät palvelut"},"181","181 Painaminen ja siihen liittyvät palvelut","181"]
[null,"084","Korkeakoulu- ja tutkimuslaitosrakennukset","084",null,"Korkeakoulu- ja tutkimuslaitosrakennukset","084",null,"182 Ääni-, kuva- ja atk-tallenteiden tuotanto","182","182 Ääni-, kuva- ja atk-tallenteiden tuotanto","182"]
[null,"0840","Korkeakoulurakennukset","0840",null,"Korkeakoulurakennukset","0840",null,"19 Koksin ja jalostettujen öljytuotteiden valmistus","19","19 Koksin ja jalostettujen öljytuotteiden valmistus","19"]
[null,"0841","Tutkimuslaitosrakennukset","0841",null,"Tutkimuslaitosrakennukset","0841",null,"191 Koksituotteiden valmistus","191","191 Koksituotteiden valmistus","191"]
[null,"089","Muut opetusrakennukset","089",null,"Muut opetusrakennukset","089",null,"192 Jalostettujen öljytuotteiden valmistus","192","192 Jalostettujen öljytuotteiden valmistus","192"]
[null,"0890","Vapaan sivistystyön opetusrakennukset","0890",null,"Vapaan sivistystyön opetusrakennukset","0890",null,"20 Kemikaalien ja kemiallisten tuotteiden valmistus","20","20 Kemikaalien ja kemiallisten tuotteiden valmistus","20"]
[null,"0891","Järjestöjen, liittojen, työnantajien ja vastaavien opetusrakennukset","0891",null,"Järjestöjen, liittojen, työnantajien ja vastaavien opetusrakennukset","0891",null,"201 Peruskemikaalien, lannoitteiden ja typpiyhdisteiden, muoviaineiden ja synteettisen kumiraaka-aineen valmistus","201","201 Peruskemikaalien, lannoitteiden ja typpiyhdisteiden, muoviaineiden ja synteettisen kumiraaka-aineen valmistus","201"]
[null,"09","Teollisuuden ja kaivannaistoiminnan rakennukset","09",null,"Teollisuuden ja kaivannaistoiminnan rakennukset","09",null,"202 Torjunta-aineiden ja muiden maatalouskemikaalien valmistus","202","202 Torjunta-aineiden ja muiden maatalouskemikaalien valmistus","202"]
[null,"091","Teollisuuden tuotantorakennukset","091",null,"Teollisuuden tuotantorakennukset","091",null,"203 Maalien, lakan, painovärien yms. valmistus","203","203 Maalien, lakan, painovärien yms. valmistus","203"]
[null,"0910","Yleiskäyttöiset teollisuushallit","0910",null,"Yleiskäyttöiset teollisuushallit","0910",null,"204 Saippuan, pesu-, puhdistus- ja kiillotusaineiden; hajuvesien ja hygieniatuotteiden valmistus","204","204 Saippuan, pesu-, puhdistus- ja kiillotusaineiden; hajuvesien ja hygieniatuotteiden valmistus","204"]
[null,"0911","Raskaan teollisuuden tehdasrakennukset","0911",null,"Raskaan teollisuuden tehdasrakennukset","0911",null,"205 Muiden kemiallisten tuotteiden valmistus","205","205 Muiden kemiallisten tuotteiden valmistus","205"]
[null,"0912","Elintarviketeollisuuden tuotantorakennukset","0912",null,"Elintarviketeollisuuden tuotantorakennukset","0912",null,"206 Tekokuitujen valmistus","206","206 Tekokuitujen valmistus","206"]
[null,"0919","Muut teollisuuden tuotantorakennukset","0919",null,"Muut teollisuuden tuotantorakennukset","0919",null,"21 Lääkeaineiden ja lääkkeiden valmistus","21","21 Lääkeaineiden ja lääkkeiden valmistus","21"]
[null,"092","Teollisuus- ja pienteollisuustalot","092",null,"Teollisuus- ja pienteollisuustalot","092",null,"211 Lääkeaineiden valmistus","211","211 Lääkeaineiden valmistus","211"]
[null,"093","Kaivannaistoiminnan rakennukset","093",null,"Kaivannaistoiminnan rakennukset","093",null,"212 Lääkkeiden ja muiden lääkevalmisteiden valmistus","212","212 Lääkkeiden ja muiden lääkevalmisteiden valmistus","212"]
[null,"0930","Metallimalmien käsittelyrakennukset","0930",null,"Metallimalmien käsittelyrakennukset","0930",null,"22 Kumi- ja muovituotteiden valmistus","22","22 Kumi- ja muovituotteiden valmistus","22"]
[null,"0939",{"$f":"F93","v":"Muut kaivannaistoiminnan rakennukset"},"0939",null,"Muut kaivannaistoiminnan rakennukset","0939",null,"221 Kumituotteiden valmistus","221","221 Kumituotteiden valmistus","221"]
[null,"10","Energiahuoltorakennukset","10",null,"Energiahuoltorakennukset","10",null,"222 Muovituotteiden valmistus","222","222 Muovituotteiden valmistus","222"]
[null,"101","Energiantuotantorakennukset","101",null,"Energiantuotantorakennukset","101",null,"23 Muiden ei-metallisten mineraalituotteiden valmistus","23","23 Muiden ei-metallisten mineraalituotteiden valmistus","23"]
[null,"1010","Sähköenergian tuotantorakennukset","1010",null,"Sähköenergian tuotantorakennukset","1010",null,"231 Lasin ja lasituotteiden valmistus","231","231 Lasin ja lasituotteiden valmistus","231"]
[null,"1011","Lämpö- ja kylmäenergian tuotantorakennukset","1011",null,"Lämpö- ja kylmäenergian tuotantorakennukset","1011",null,"232 Tulenkestävien keraamisten tuotteiden valmistus","232","232 Tulenkestävien keraamisten tuotteiden valmistus","232"]
[null,"109","Muut energiahuoltorakennukset","109",null,"Muut energiahuoltorakennukset","109",null,"233 Keraamisten rakennusaineiden valmistus","233","233 Keraamisten rakennusaineiden valmistus","233"]
[null,"1090","Energiansiirtorakennukset","1090",null,"Energiansiirtorakennukset","1090",null,"234 Muiden posliini- ja keramiikkatuotteiden valmistus","234","234 Muiden posliini- ja keramiikkatuotteiden valmistus","234"]
[null,"1091","Energianvarastointirakennukset","1091",null,"Energianvarastointirakennukset","1091",null,"235 Sementin, kalkin ja kipsin valmistus","235","235 Sementin, kalkin ja kipsin valmistus","235"]
[null,"11","Yhdyskuntatekniikan rakennukset","11",null,"Yhdyskuntatekniikan rakennukset","11",null,"236 Betoni-, kipsi- ja sementtituotteiden valmistus","236","236 Betoni-, kipsi- ja sementtituotteiden valmistus","236"]
[null,"111","Vesihuollon rakennukset","111",null,"Vesihuollon rakennukset","111",null,"237 Kiven leikkaaminen, muotoilu ja viimeistely","237","237 Kiven leikkaaminen, muotoilu ja viimeistely","237"]
[null,"112","Jätehuollon rakennukset","112",null,"Jätehuollon rakennukset","112",null,"239 Hiontatuotteiden ja muualla luokittelemattomien ei-metallisten mineraalituotteiden valmistus","239","239 Hiontatuotteiden ja muualla luokittelemattomien ei-metallisten mineraalituotteiden valmistus","239"]
[null,"113","Materiaalien kierrätysrakennukset","113",null,"Materiaalien kierrätysrakennukset","113",null,"24 Metallien jalostus","24","24 Metallien jalostus","24"]
[null,"12","Varastorakennukset","12",null,"Varastorakennukset","12",null,"241 Raudan, teräksen ja rautaseosten valmistus","241","241 Raudan, teräksen ja rautaseosten valmistus","241"]
[null,"1210","Lämmittämättömät varastot","1210",null,"Lämmittämättömät varastot","1210",null,"242 Putkien, profiiliputkien ja niihin liittyvien tarvikkeiden valmistus teräksestä","242","242 Putkien, profiiliputkien ja niihin liittyvien tarvikkeiden valmistus teräksestä","242"]
[null,"1211","Lämpimät varastot","1211",null,"Lämpimät varastot","1211",null,"243 Muu teräksen jalostus","243","243 Muu teräksen jalostus","243"]
[null,"1212","Kylmä- ja pakastevarastot","1212",null,"Kylmä- ja pakastevarastot","1212",null,"244 Jalometallien ja muiden värimetallien valmistus","244","244 Jalometallien ja muiden värimetallien valmistus","244"]
[null,"1213","Muut olosuhteiltaan säädellyt varastot","1213",null,"Muut olosuhteiltaan säädellyt varastot","1213",null,"245 Metallien valu","245","245 Metallien valu","245"]
[null,"1214","Logistiikkakeskukset ja muut monikäyttöiset varastorakennukset","1214",null,"Logistiikkakeskukset ja muut monikäyttöiset varastorakennukset","1214",null,"25 Metallituotteiden valmistus (pl. koneet ja laitteet)","25","25 Metallituotteiden valmistus (pl. koneet ja laitteet)","25"]
[null,"1215","Varastokatokset","1215",null,"Varastokatokset","1215",null,"251 Metallirakenteiden valmistus","251","251 Metallirakenteiden valmistus","251"]
[null,"13","Pelastustoimen rakennukset","13",null,"Pelastustoimen rakennukset","13",null,"252 Metallisäiliöiden ja -altaiden yms. valmistus","252","252 Metallisäiliöiden ja -altaiden yms. valmistus","252"]
[null,"1310","Paloasemat","1310",null,"Paloasemat","1310",null,"253 Höyrykattiloiden valmistus (pl. keskuslämmityslaitteet)","253","253 Höyrykattiloiden valmistus (pl. keskuslämmityslaitteet)","253"]
[null,"1311","Väestönsuojat","1311",null,"Väestönsuojat","1311",null,"254 Aseiden ja ammusten valmistus","254","254 Aseiden ja ammusten valmistus","254"]
[null,"1319","Muut pelastustoimen rakennukset","1319",null,"Muut pelastustoimen rakennukset","1319",null,"255 Metallin takominen, puristaminen, meistäminen ja valssaus; jauhemetallurgia","255","255 Metallin takominen, puristaminen, meistäminen ja valssaus; jauhemetallurgia","255"]
[null,"14",{"$f":"F116","v":"Maatalousrakennukset ja eläinsuojat"},{"$f":"G116","v":"14"},null,"Maatalousrakennukset ja eläinsuojat","14",null,"256 Metallien käsittely, päällystäminen ja työstö","256","256 Metallien käsittely, päällystäminen ja työstö","256"]
[null,"141","Kotieläinrakennukset","141",null,"Kotieläinrakennukset","141",null,"257 Ruokailu- ja leikkuuvälineiden yms. sekä työkalujen ja rautatavaran valmistus","257","257 Ruokailu- ja leikkuuvälineiden yms. sekä työkalujen ja rautatavaran valmistus","257"]
[null,"149","Muut maatalousrakennukset","149",null,"Muut maatalousrakennukset","149",null,"259 Muu metallituotteiden valmistus","259","259 Muu metallituotteiden valmistus","259"]
[null,"19","Muut rakennukset","19",null,"Muut rakennukset","19",null,"26 Tietokoneiden sekä elektronisten ja optisten tuotteiden valmistus","26","26 Tietokoneiden sekä elektronisten ja optisten tuotteiden valmistus","26"]
[null,"1910","Saunarakennukset","1910",null,"Saunarakennukset","1910",null,"261 Elektronisten komponenttien ja piirilevyjen valmistus","261","261 Elektronisten komponenttien ja piirilevyjen valmistus","261"]
[null,"1911","Talousrakennukset","1911",null,"Talousrakennukset","1911",null,"262 Tietokoneiden ja niiden oheislaitteiden valmistus","262","262 Tietokoneiden ja niiden oheislaitteiden valmistus","262"]
[null,"1912","Majat ja tuvat","1912",null,"Majat ja tuvat","1912",null,"263 Viestintälaitteiden valmistus","263","263 Viestintälaitteiden valmistus","263"]
[null,"1919","Muualla luokittelemattomat rakennukset","1919",null,"Muualla luokittelemattomat rakennukset","1919",null,"264 Viihde-elektroniikan valmistus","264","264 Viihde-elektroniikan valmistus","264"]
[{"$nulls":8},"265 Mittaus-, testaus- ja navigointivälineiden ja -laitteiden valmistus; kellot","265","265 Mittaus-, testaus- ja navigointivälineiden ja -laitteiden valmistus; kellot","265"]
[{"$nulls":8},"266 Säteilylaitteiden sekä elektronisten lääkintä- ja terapialaitteiden valmistus","266","266 Säteilylaitteiden sekä elektronisten lääkintä- ja terapialaitteiden valmistus","266"]
[{"$nulls":8},"267 Optisten instrumenttien ja valokuvausvälineiden valmistus","267","267 Optisten instrumenttien ja valokuvausvälineiden valmistus","267"]
[{"$nulls":8},"268 Tallennevälineiden valmistus","268","268 Tallennevälineiden valmistus","268"]
[{"$nulls":8},"27 Sähkölaitteiden valmistus","27","27 Sähkölaitteiden valmistus","27"]
[{"$nulls":8},"271 Sähkömoottorien, generaattorien, muuntajien sekä sähkönjakelu- ja valvontalaitteiden valmistus","271","271 Sähkömoottorien, generaattorien, muuntajien sekä sähkönjakelu- ja valvontalaitteiden valmistus","271"]
[{"$nulls":8},"272 Paristojen ja akkujen valmistus","272","272 Paristojen ja akkujen valmistus","272"]
[{"$nulls":8},"273 Sähköjohtojen ja kytkentälaitteiden valmistus","273","273 Sähköjohtojen ja kytkentälaitteiden valmistus","273"]
[{"$nulls":8},"274 Sähkölamppujen ja valaisimien valmistus","274","274 Sähkölamppujen ja valaisimien valmistus","274"]
[{"$nulls":8},"275 Kodinkoneiden valmistus","275","275 Kodinkoneiden valmistus","275"]
[{"$nulls":8},"279 Muiden sähkölaitteiden valmistus","279","279 Muiden sähkölaitteiden valmistus","279"]
[{"$nulls":8},"28 Muiden koneiden ja laitteiden valmistus","28","28 Muiden koneiden ja laitteiden valmistus","28"]
[{"$nulls":8},"281 Yleiskäyttöön tarkoitettujen voimakoneiden valmistus","281","281 Yleiskäyttöön tarkoitettujen voimakoneiden valmistus","281"]
[{"$nulls":8},"282 Muiden yleiskäyttöön tarkoitettujen koneiden valmistus","282","282 Muiden yleiskäyttöön tarkoitettujen koneiden valmistus","282"]
[{"$nulls":8},"283 Maa- ja metsätalouskoneiden valmistus","283","283 Maa- ja metsätalouskoneiden valmistus","283"]
[{"$nulls":8},"284 Metallin työstökoneiden ja konetyökalujen valmistus","284","284 Metallin työstökoneiden ja konetyökalujen valmistus","284"]
[{"$nulls":8},"289 Muiden erikoiskoneiden valmistus","289","289 Muiden erikoiskoneiden valmistus","289"]
[{"$nulls":8},{"$f":"K141","v":"29 Moottoriajoneuvojen, perävaunujen ja puoliperävaunujen valmistus"},"29","29 Moottoriajoneuvojen, perävaunujen ja puoliperävaunujen valmistus","29"]
[{"$nulls":8},"291 Moottoriajoneuvojen valmistus","291","291 Moottoriajoneuvojen valmistus","291"]
[{"$nulls":8},"292 Moottoriajoneuvojen korien valmistus; perävaunujen ja puoliperävaunujen valmistus","292","292 Moottoriajoneuvojen korien valmistus; perävaunujen ja puoliperävaunujen valmistus","292"]
[{"$nulls":8},"293 Osien ja tarvikkeiden valmistus moottoriajoneuvoihin","293","293 Osien ja tarvikkeiden valmistus moottoriajoneuvoihin","293"]
[{"$nulls":8},"30 Muiden kulkuneuvojen valmistus","30","30 Muiden kulkuneuvojen valmistus","30"]
[{"$nulls":8},"301 Laivojen ja veneiden rakentaminen","301","301 Laivojen ja veneiden rakentaminen","301"]
[{"$nulls":8},"302 Raideliikenteen kulkuneuvojen valmistus","302","302 Raideliikenteen kulkuneuvojen valmistus","302"]
[{"$nulls":8},"303 Ilma- ja avaruusalusten ja niihin liittyvien koneiden valmistus","303","303 Ilma- ja avaruusalusten ja niihin liittyvien koneiden valmistus","303"]
[{"$nulls":8},"304 Taisteluajoneuvojen valmistus","304","304 Taisteluajoneuvojen valmistus","304"]
[{"$nulls":8},"309 Muualla luokittelematon kulkuneuvojen valmistus","309","309 Muualla luokittelematon kulkuneuvojen valmistus","309"]
[{"$nulls":8},"31 Huonekalujen valmistus","31","31 Huonekalujen valmistus","31"]
[{"$nulls":8},"310 Huonekalujen valmistus","310","310 Huonekalujen valmistus","310"]
[{"$nulls":8},"32 Muu valmistus","32","32 Muu valmistus","32"]
[{"$nulls":8},"321 Korujen, kultasepäntuotteiden ja muiden vastaavien tuotteiden valmistus","321","321 Korujen, kultasepäntuotteiden ja muiden vastaavien tuotteiden valmistus","321"]
[{"$nulls":8},"322 Soitinten valmistus","322","322 Soitinten valmistus","322"]
[{"$nulls":8},"323 Urheiluvälineiden valmistus","323","323 Urheiluvälineiden valmistus","323"]
[{"$nulls":8},"324 Pelien ja leikkikalujen valmistus","324","324 Pelien ja leikkikalujen valmistus","324"]
[{"$nulls":8},"325 Lääkintä- ja hammaslääkintäinstrumenttien ja -tarvikkeiden valmistus","325","325 Lääkintä- ja hammaslääkintäinstrumenttien ja -tarvikkeiden valmistus","325"]
[{"$nulls":8},"329 Muualla luokittelematon valmistus","329","329 Muualla luokittelematon valmistus","329"]
[{"$nulls":8},"33 Koneiden ja laitteiden korjaus, huolto ja asennus","33","33 Koneiden ja laitteiden korjaus, huolto ja asennus","33"]
[{"$nulls":8},"331 Metallituotteiden, teollisuuden koneiden ja laitteiden korjaus ja huolto","331","331 Metallituotteiden, teollisuuden koneiden ja laitteiden korjaus ja huolto","331"]
[{"$nulls":8},"332 Teollisuuden koneiden ja laitteiden ym. asennus","332","332 Teollisuuden koneiden ja laitteiden ym. asennus","332"]
[{"$nulls":8},"35 Sähkö-, kaasu- ja lämpöhuolto, jäähdytysliiketoiminta","35","35 Sähkö-, kaasu- ja lämpöhuolto, jäähdytysliiketoiminta","35"]
[{"$nulls":8},"351 Sähkövoiman tuotanto, siirto ja jakelu","351","351 Sähkövoiman tuotanto, siirto ja jakelu","351"]
[{"$nulls":8},"352 Kaasun tuotanto; kaasumaisten polttoaineiden jakelu putkiverkossa","352","352 Kaasun tuotanto; kaasumaisten polttoaineiden jakelu putkiverkossa","352"]
[{"$nulls":8},"353 Lämmön ja kylmän tuotanto ja jakelu","353","353 Lämmön ja kylmän tuotanto ja jakelu","353"]
[{"$nulls":8},"36 Veden otto, puhdistus ja jakelu","36","36 Veden otto, puhdistus ja jakelu","36"]
[{"$nulls":8},"360 Veden otto, puhdistus ja jakelu","360","360 Veden otto, puhdistus ja jakelu","360"]
[{"$nulls":8},"37 Viemäri- ja jätevesihuolto","37","37 Viemäri- ja jätevesihuolto","37"]
[{"$nulls":8},"370 Viemäri- ja jätevesihuolto","370","370 Viemäri- ja jätevesihuolto","370"]
[{"$nulls":8},"38 Jätteen keruu, käsittely ja loppusijoitus; materiaalien kierrätys","38","38 Jätteen keruu, käsittely ja loppusijoitus; materiaalien kierrätys","38"]
[{"$nulls":8},"381 Jätteen keruu","381","381 Jätteen keruu","381"]
[{"$nulls":8},"382 Jätteen käsittely ja loppusijoitus","382","382 Jätteen käsittely ja loppusijoitus","382"]
[{"$nulls":8},"383 Materiaalien kierrätys","383","383 Materiaalien kierrätys","383"]
[{"$nulls":8},"39 Maaperän ja vesistöjen kunnostus ja muut ympäristönhuoltopalvelut","39","39 Maaperän ja vesistöjen kunnostus ja muut ympäristönhuoltopalvelut","39"]
[{"$nulls":8},"390 Maaperän ja vesistöjen kunnostus ja muut ympäristönhuoltopalvelut","390","390 Maaperän ja vesistöjen kunnostus ja muut ympäristönhuoltopalvelut","390"]
[{"$nulls":8},"41 Talonrakentaminen","41","41 Talonrakentaminen","41"]
[{"$nulls":8},"411 Rakennuttaminen ja rakennushankkeiden kehittäminen","411","411 Rakennuttaminen ja rakennushankkeiden kehittäminen","411"]
[{"$nulls":8},"412 Asuin- ja muiden rakennusten rakentaminen","412","412 Asuin- ja muiden rakennusten rakentaminen","412"]
[{"$nulls":8},"42 Maa- ja vesirakentaminen","42","42 Maa- ja vesirakentaminen","42"]
[{"$nulls":8},"421 Teiden ja rautateiden rakentaminen","421","421 Teiden ja rautateiden rakentaminen","421"]
[{"$nulls":8},"422 Yleisten jakeluverkkojen rakentaminen","422","422 Yleisten jakeluverkkojen rakentaminen","422"]
[{"$nulls":8},"429 Muu maa- ja vesirakentaminen","429","429 Muu maa- ja vesirakentaminen","429"]
[{"$nulls":8},"43 Erikoistunut rakennustoiminta","43","43 Erikoistunut rakennustoiminta","43"]
[{"$nulls":8},"431 Rakennusten ja rakennelmien purku ja rakennuspaikan valmistelutyöt","431","431 Rakennusten ja rakennelmien purku ja rakennuspaikan valmistelutyöt","431"]
[{"$nulls":8},"432 Sähkö-, vesijohto- ja muu rakennusasennus","432","432 Sähkö-, vesijohto- ja muu rakennusasennus","432"]
[{"$nulls":8},"433 Rakennusten ja rakennelmien viimeistely","433","433 Rakennusten ja rakennelmien viimeistely","433"]
[{"$nulls":8},"439 Muu erikoistunut rakennustoiminta","439","439 Muu erikoistunut rakennustoiminta","439"]
[{"$nulls":8},"45 Moottoriajoneuvojen ja moottoripyörien tukku- ja vähittäiskauppa sekä korjaus","45","45 Moottoriajoneuvojen ja moottoripyörien tukku- ja vähittäiskauppa sekä korjaus","45"]
[{"$nulls":8},"451 Moottoriajoneuvojen kauppa","451","451 Moottoriajoneuvojen kauppa","451"]
[{"$nulls":8},"452 Moottoriajoneuvojen huolto ja korjaus (pl. moottoripyörät)","452","452 Moottoriajoneuvojen huolto ja korjaus (pl. moottoripyörät)","452"]
[{"$nulls":8},"453 Moottoriajoneuvojen osien ja varusteiden kauppa","453","453 Moottoriajoneuvojen osien ja varusteiden kauppa","453"]
[{"$nulls":8},"454 Moottoripyörien sekä niiden osien ja varusteiden myynti, huolto ja korjaus","454","454 Moottoripyörien sekä niiden osien ja varusteiden myynti, huolto ja korjaus","454"]
[{"$nulls":8},"46 Tukkukauppa (pl. moottoriajoneuvojen ja moottoripyörien kauppa)","46","46 Tukkukauppa (pl. moottoriajoneuvojen ja moottoripyörien kauppa)","46"]
[{"$nulls":8},"461 Agentuuritoiminta","461","461 Agentuuritoiminta","461"]
[{"$nulls":8},"462 Maatalousperäisten raaka-aineiden ja elävien eläinten tukkukauppa","462","462 Maatalousperäisten raaka-aineiden ja elävien eläinten tukkukauppa","462"]
[{"$nulls":8},"463 Elintarvikkeiden, juomien ja tupakan tukkukauppa","463","463 Elintarvikkeiden, juomien ja tupakan tukkukauppa","463"]
[{"$nulls":8},"464 Taloustavaroiden tukkukauppa","464","464 Taloustavaroiden tukkukauppa","464"]
[{"$nulls":8},"465 Tieto- ja viestintäteknisten laitteiden tukkukauppa","465","465 Tieto- ja viestintäteknisten laitteiden tukkukauppa","465"]
[{"$nulls":8},"466 Muiden koneiden, laitteiden ja tarvikkeiden tukkukauppa","466","466 Muiden koneiden, laitteiden ja tarvikkeiden tukkukauppa","466"]
[{"$nulls":8},"467 Muu erikoistunut tukkukauppa","467","467 Muu erikoistunut tukkukauppa","467"]
[{"$nulls":8},"469 Muu tukkukauppa","469","469 Muu tukkukauppa","469"]
[{"$nulls":8},"47 Vähittäiskauppa (pl. moottoriajoneuvojen ja moottoripyörien kauppa)","47","47 Vähittäiskauppa (pl. moottoriajoneuvojen ja moottoripyörien kauppa)","47"]
[{"$nulls":8},"471 Vähittäiskauppa erikoistumattomissa myymälöissä","471","471 Vähittäiskauppa erikoistumattomissa myymälöissä","471"]
[{"$nulls":8},{"$f":"K205","v":"472 Elintarvikkeiden, juomien ja tupakan vähittäiskauppa erikoismyymälöissä"},"472","472 Elintarvikkeiden, juomien ja tupakan vähittäiskauppa erikoismyymälöissä","472"]
[{"$nulls":8},"473 Ajoneuvojen polttoaineen vähittäiskauppa","473","473 Ajoneuvojen polttoaineen vähittäiskauppa","473"]
[{"$nulls":8},"474 Tieto- ja viestintäteknisten laitteiden vähittäiskauppa erikoismyymälöissä","474","474 Tieto- ja viestintäteknisten laitteiden vähittäiskauppa erikoismyymälöissä","474"]
[{"$nulls":8},"475 Muiden kotitaloustavaroiden vähittäiskauppa erikoismyymälöissä","475","475 Muiden kotitaloustavaroiden vähittäiskauppa erikoismyymälöissä","475"]
[{"$nulls":8},"476 Kulttuuri- ja vapaa-ajan tuotteiden vähittäiskauppa erikoismyymälöissä","476","476 Kulttuuri- ja vapaa-ajan tuotteiden vähittäiskauppa erikoismyymälöissä","476"]
[{"$nulls":8},"477 Muiden tavaroiden vähittäiskauppa erikoismyymälöissä","477","477 Muiden tavaroiden vähittäiskauppa erikoismyymälöissä","477"]
[{"$nulls":8},"478 Tori- ja markkinakauppa","478","478 Tori- ja markkinakauppa","478"]
[{"$nulls":8},"479 Vähittäiskauppa muualla kuin myymälöissä (pl. tori- ja markkinakauppa)","479","479 Vähittäiskauppa muualla kuin myymälöissä (pl. tori- ja markkinakauppa)","479"]
[{"$nulls":8},"49 Maaliikenne ja putkijohtokuljetus","49","49 Maaliikenne ja putkijohtokuljetus","49"]
[{"$nulls":8},"491 Rautateiden henkilöliikenne, kaukoliikenne","491","491 Rautateiden henkilöliikenne, kaukoliikenne","491"]
[{"$nulls":8},"492 Rautateiden tavaraliikenne","492","492 Rautateiden tavaraliikenne","492"]
[{"$nulls":8},"493 Muu maaliikenteen henkilöliikenne","493","493 Muu maaliikenteen henkilöliikenne","493"]
[{"$nulls":8},"494 Tieliikenteen tavarankuljetus ja muuttopalvelut","494","494 Tieliikenteen tavarankuljetus ja muuttopalvelut","494"]
[{"$nulls":8},"495 Putkijohtokuljetus","495","495 Putkijohtokuljetus","495"]
[{"$nulls":8},"50 Vesiliikenne","50","50 Vesiliikenne","50"]
[{"$nulls":8},"501 Meri- ja rannikkovesiliikenteen henkilökuljetus","501","501 Meri- ja rannikkovesiliikenteen henkilökuljetus","501"]
[{"$nulls":8},"502 Meri- ja rannikkovesiliikenteen tavarankuljetus","502","502 Meri- ja rannikkovesiliikenteen tavarankuljetus","502"]
[{"$nulls":8},"503 Sisävesiliikenteen henkilökuljetus","503","503 Sisävesiliikenteen henkilökuljetus","503"]
[{"$nulls":8},"504 Sisävesiliikenteen tavarankuljetus","504","504 Sisävesiliikenteen tavarankuljetus","504"]
[{"$nulls":8},"51 Ilmaliikenne","51","51 Ilmaliikenne","51"]
[{"$nulls":8},"511 Matkustajalentoliikenne","511","511 Matkustajalentoliikenne","511"]
[{"$nulls":8},"512 Lentoliikenteen tavarankuljetus ja avaruusliikenne","512","512 Lentoliikenteen tavarankuljetus ja avaruusliikenne","512"]
[{"$nulls":8},"52 Varastointi ja liikennettä palveleva toiminta","52","52 Varastointi ja liikennettä palveleva toiminta","52"]
[{"$nulls":8},"521 Varastointi","521","521 Varastointi","521"]
[{"$nulls":8},"522 Liikennettä palveleva toiminta","522","522 Liikennettä palveleva toiminta","522"]
[{"$nulls":8},"53 Posti- ja kuriiritoiminta","53","53 Posti- ja kuriiritoiminta","53"]
[{"$nulls":8},"531 Postin yleispalvelu","531","531 Postin yleispalvelu","531"]
[{"$nulls":8},"532 Muu posti-, jakelu- ja kuriiritoiminta","532","532 Muu posti-, jakelu- ja kuriiritoiminta","532"]
[{"$nulls":8},"55 Majoitus","55","55 Majoitus","55"]
[{"$nulls":8},"551 Hotellit ja vastaavat majoitusliikkeet","551","551 Hotellit ja vastaavat majoitusliikkeet","551"]
[{"$nulls":8},"552 Lomakylät, retkeilymajat yms. majoitus","552","552 Lomakylät, retkeilymajat yms. majoitus","552"]
[{"$nulls":8},"553 Leirintäalueet, asuntovaunu- ja matkailuvaunualueet","553","553 Leirintäalueet, asuntovaunu- ja matkailuvaunualueet","553"]
[{"$nulls":8},"559 Muu majoitus","559","559 Muu majoitus","559"]
[{"$nulls":8},"56 Ravitsemistoiminta","56","56 Ravitsemistoiminta","56"]
[{"$nulls":8},"561 Ravintolat ja vastaava ravitsemistoiminta","561","561 Ravintolat ja vastaava ravitsemistoiminta","561"]
[{"$nulls":8},"562 Ateriapalvelut ja muut ravitsemispalvelut","562","562 Ateriapalvelut ja muut ravitsemispalvelut","562"]
[{"$nulls":8},"563 Baarit ja kahvilat","563","563 Baarit ja kahvilat","563"]
[{"$nulls":8},"58 Kustannustoiminta","58","58 Kustannustoiminta","58"]
[{"$nulls":8},"581 Kirjojen ja lehtien kustantaminen ja muu kustannustoiminta","581","581 Kirjojen ja lehtien kustantaminen ja muu kustannustoiminta","581"]
[{"$nulls":8},"582 Ohjelmistojen kustantaminen","582","582 Ohjelmistojen kustantaminen","582"]
[{"$nulls":8},"59 Elokuva-, video- ja televisio-ohjelmatuotanto, äänitteiden ja musiikin kustantaminen","59","59 Elokuva-, video- ja televisio-ohjelmatuotanto, äänitteiden ja musiikin kustantaminen","59"]
[{"$nulls":8},"591 Elokuva-, video- ja televisio-ohjelmatoiminta","591","591 Elokuva-, video- ja televisio-ohjelmatoiminta","591"]
[{"$nulls":8},"592 Äänitysstudiot; äänitteiden ja musiikin kustantaminen","592","592 Äänitysstudiot; äänitteiden ja musiikin kustantaminen","592"]
[{"$nulls":8},"60 Radio- ja televisiotoiminta","60","60 Radio- ja televisiotoiminta","60"]
[{"$nulls":8},"601 Radio-ohjelmien tuottaminen ja lähettäminen","601","601 Radio-ohjelmien tuottaminen ja lähettäminen","601"]
[{"$nulls":8},"602 Televisio-ohjelmien tuottaminen ja lähettäminen","602","602 Televisio-ohjelmien tuottaminen ja lähettäminen","602"]
[{"$nulls":8},"61 Televiestintä","61","61 Televiestintä","61"]
[{"$nulls":8},"611 Langallisen verkon hallinta ja palvelut","611","611 Langallisen verkon hallinta ja palvelut","611"]
[{"$nulls":8},"612 Langattoman verkon hallinta ja palvelut","612","612 Langattoman verkon hallinta ja palvelut","612"]
[{"$nulls":8},"613 Satelliittiviestintä","613","613 Satelliittiviestintä","613"]
[{"$nulls":8},"619 Muut televiestintäpalvelut","619","619 Muut televiestintäpalvelut","619"]
[{"$nulls":8},"62 Ohjelmistot, konsultointi ja siihen liittyvä toiminta","62","62 Ohjelmistot, konsultointi ja siihen liittyvä toiminta","62"]
[{"$nulls":8},"620 Ohjelmistot, konsultointi ja siihen liittyvä toiminta","620","620 Ohjelmistot, konsultointi ja siihen liittyvä toiminta","620"]
[{"$nulls":8},"63 Tietopalvelutoiminta","63","63 Tietopalvelutoiminta","63"]
[{"$nulls":8},"631 Tietojenkäsittely, palvelintilan vuokraus ja niihin liittyvät palvelut; verkkoportaalit","631","631 Tietojenkäsittely, palvelintilan vuokraus ja niihin liittyvät palvelut; verkkoportaalit","631"]
[{"$nulls":8},"639 Muu tietopalvelutoiminta","639","639 Muu tietopalvelutoiminta","639"]
[{"$nulls":8},"64 Rahoituspalvelut (pl. vakuutus- ja eläkevakuutustoiminta)","64","64 Rahoituspalvelut (pl. vakuutus- ja eläkevakuutustoiminta)","64"]
[{"$nulls":8},"641 Pankkitoiminta","641","641 Pankkitoiminta","641"]
[{"$nulls":8},"642 Rahoitusalan holdingyhtiöiden toiminta","642","642 Rahoitusalan holdingyhtiöiden toiminta","642"]
[{"$nulls":8},"643 Rahastotoiminta","643","643 Rahastotoiminta","643"]
[{"$nulls":8},"649 Muut rahoituspalvelut (pl. vakuutus- ja eläkevakuutustoiminta)","649","649 Muut rahoituspalvelut (pl. vakuutus- ja eläkevakuutustoiminta)","649"]
[{"$nulls":8},"65 Vakuutus-, jälleenvakuutus- ja eläkevakuutustoiminta (pl. pakollinen sosiaalivakuutus)","65","65 Vakuutus-, jälleenvakuutus- ja eläkevakuutustoiminta (pl. pakollinen sosiaalivakuutus)","65"]
[{"$nulls":8},"651 Vakuutustoiminta","651","651 Vakuutustoiminta","651"]
[{"$nulls":8},"652 Jälleenvakuutustoiminta","652","652 Jälleenvakuutustoiminta","652"]
[{"$nulls":8},{"$f":"K269","v":"653 Eläkevakuutustoiminta"},"653","653 Eläkevakuutustoiminta","653"]
[{"$nulls":8},"66 Rahoitusta ja vakuuttamista palveleva toiminta","66","66 Rahoitusta ja vakuuttamista palveleva toiminta","66"]
[{"$nulls":8},"661 Rahoitusta ja vakuuttamista palveleva toiminta (pl. vakuutus- ja eläkevakuutustoiminta)","661","661 Rahoitusta ja vakuuttamista palveleva toiminta (pl. vakuutus- ja eläkevakuutustoiminta)","661"]
[{"$nulls":8},"662 Vakuutus- ja eläkevakuutustoimintaa avustava toiminta","662","662 Vakuutus- ja eläkevakuutustoimintaa avustava toiminta","662"]
[{"$nulls":8},"663 Omaisuudenhoitotoiminta","663","663 Omaisuudenhoitotoiminta","663"]
[{"$nulls":8},"68 Kiinteistöalan toiminta","68","68 Kiinteistöalan toiminta","68"]
[{"$nulls":8},"681 Omien kiinteistöjen kauppa","681","681 Omien kiinteistöjen kauppa","681"]
[{"$nulls":8},"682 Omien tai leasing-kiinteistöjen vuokraus ja hallinta","682","682 Omien tai leasing-kiinteistöjen vuokraus ja hallinta","682"]
[{"$nulls":8},"683 Kiinteistöalan toiminta palkkio- tai sopimusperusteisesti","683","683 Kiinteistöalan toiminta palkkio- tai sopimusperusteisesti","683"]
[{"$nulls":8},"69 Lakiasiain- ja laskentatoimen palvelut","69","69 Lakiasiain- ja laskentatoimen palvelut","69"]
[{"$nulls":8},"691 Lakiasiainpalvelut","691","691 Lakiasiainpalvelut","691"]
[{"$nulls":8},"692 Laskentatoimi, kirjanpito ja tilintarkastus; veroneuvonta","692","692 Laskentatoimi, kirjanpito ja tilintarkastus; veroneuvonta","692"]
[{"$nulls":8},"70 Pääkonttorien toiminta; liikkeenjohdon konsultointi","70","70 Pääkonttorien toiminta; liikkeenjohdon konsultointi","70"]
[{"$nulls":8},"701 Pääkonttorien toiminta","701","701 Pääkonttorien toiminta","701"]
[{"$nulls":8},"702 Liikkeenjohdon konsultointi","702","702 Liikkeenjohdon konsultointi","702"]
[{"$nulls":8},"71 Arkkitehti- ja insinööripalvelut; tekninen testaus ja analysointi","71","71 Arkkitehti- ja insinööripalvelut; tekninen testaus ja analysointi","71"]
[{"$nulls":8},"711 Arkkitehti- ja insinööripalvelut ja niihin liittyvä tekninen konsultointi","711","711 Arkkitehti- ja insinööripalvelut ja niihin liittyvä tekninen konsultointi","711"]
[{"$nulls":8},"712 Tekninen testaus ja analysointi","712","712 Tekninen testaus ja analysointi","712"]
[{"$nulls":8},"72 Tieteellinen tutkimus ja kehittäminen","72","72 Tieteellinen tutkimus ja kehittäminen","72"]
[{"$nulls":8},"721 Luonnontieteen ja tekniikan tutkimus ja kehittäminen","721","721 Luonnontieteen ja tekniikan tutkimus ja kehittäminen","721"]
[{"$nulls":8},"722 Yhteiskuntatieteellinen ja humanistinen tutkimus ja kehittäminen","722","722 Yhteiskuntatieteellinen ja humanistinen tutkimus ja kehittäminen","722"]
[{"$nulls":8},"73 Mainostoiminta ja markkinatutkimus","73","73 Mainostoiminta ja markkinatutkimus","73"]
[{"$nulls":8},"731 Mainostoiminta","731","731 Mainostoiminta","731"]
[{"$nulls":8},"732 Markkina- ja mielipidetutkimukset","732","732 Markkina- ja mielipidetutkimukset","732"]
[{"$nulls":8},"74 Muut erikoistuneet palvelut liike-elämälle","74","74 Muut erikoistuneet palvelut liike-elämälle","74"]
[{"$nulls":8},"741 Taideteollinen muotoilu ja suunnittelu","741","741 Taideteollinen muotoilu ja suunnittelu","741"]
[{"$nulls":8},"742 Valokuvaustoiminta","742","742 Valokuvaustoiminta","742"]
[{"$nulls":8},"743 Kääntäminen ja tulkkaus","743","743 Kääntäminen ja tulkkaus","743"]
[{"$nulls":8},"749 Muualla luokittelemattomat erikoistuneet palvelut liike-elämälle","749","749 Muualla luokittelemattomat erikoistuneet palvelut liike-elämälle","749"]
[{"$nulls":8},"75 Eläinlääkintäpalvelut","75","75 Eläinlääkintäpalvelut","75"]
[{"$nulls":8},"750 Eläinlääkintäpalvelut","750","750 Eläinlääkintäpalvelut","750"]
[{"$nulls":8},"77 Vuokraus- ja leasingtoiminta","77","77 Vuokraus- ja leasingtoiminta","77"]
[{"$nulls":8},"771 Moottoriajoneuvojen vuokraus ja leasing","771","771 Moottoriajoneuvojen vuokraus ja leasing","771"]
[{"$nulls":8},"772 Henkilökohtaisten ja kotitaloustavaroiden vuokraus ja leasing","772","772 Henkilökohtaisten ja kotitaloustavaroiden vuokraus ja leasing","772"]
[{"$nulls":8},"773 Koneiden ja laitteiden vuokraus ja leasing","773","773 Koneiden ja laitteiden vuokraus ja leasing","773"]
[{"$nulls":8},"774 Henkisen omaisuuden ja vastaavien tuotteiden leasing (pl. tekijänoikeuden suojaamat teokset)","774","774 Henkisen omaisuuden ja vastaavien tuotteiden leasing (pl. tekijänoikeuden suojaamat teokset)","774"]
[{"$nulls":8},"78 Työllistämistoiminta","78","78 Työllistämistoiminta","78"]
[{"$nulls":8},"781 Työnvälitystoiminta","781","781 Työnvälitystoiminta","781"]
[{"$nulls":8},"782 Työvoiman vuokraus","782","782 Työvoiman vuokraus","782"]
[{"$nulls":8},"783 Muut henkilöstön hankintapalvelut","783","783 Muut henkilöstön hankintapalvelut","783"]
[{"$nulls":8},"79 Matkatoimistojen ja matkanjärjestäjien toiminta; varauspalvelut","79","79 Matkatoimistojen ja matkanjärjestäjien toiminta; varauspalvelut","79"]
[{"$nulls":8},"791 Matkatoimistojen ja matkanjärjestäjien toiminta","791","791 Matkatoimistojen ja matkanjärjestäjien toiminta","791"]
[{"$nulls":8},"799 Varauspalvelut, matkaoppaiden palvelut ym.","799","799 Varauspalvelut, matkaoppaiden palvelut ym.","799"]
[{"$nulls":8},"80 Turvallisuus-, vartiointi- ja etsiväpalvelut","80","80 Turvallisuus-, vartiointi- ja etsiväpalvelut","80"]
[{"$nulls":8},"801 Yksityiset turvallisuuspalvelut","801","801 Yksityiset turvallisuuspalvelut","801"]
[{"$nulls":8},"802 Turvallisuusjärjestelmät","802","802 Turvallisuusjärjestelmät","802"]
[{"$nulls":8},"803 Etsivätoiminta","803","803 Etsivätoiminta","803"]
[{"$nulls":8},"81 Kiinteistön- ja maisemanhoito","81","81 Kiinteistön- ja maisemanhoito","81"]
[{"$nulls":8},"811 Kiinteistönhoito","811","811 Kiinteistönhoito","811"]
[{"$nulls":8},"812 Siivouspalvelut","812","812 Siivouspalvelut","812"]
[{"$nulls":8},"813 Maisemanhoitopalvelut","813","813 Maisemanhoitopalvelut","813"]
[{"$nulls":8},"82 Hallinto- ja tukipalvelut liike-elämälle","82","82 Hallinto- ja tukipalvelut liike-elämälle","82"]
[{"$nulls":8},"821 Hallinto- ja toimistopalvelut","821","821 Hallinto- ja toimistopalvelut","821"]
[{"$nulls":8},"822 Puhelinpalvelukeskusten toiminta","822","822 Puhelinpalvelukeskusten toiminta","822"]
[{"$nulls":8},"823 Messujen ja kongressien järjestäminen","823","823 Messujen ja kongressien järjestäminen","823"]
[{"$nulls":8},"829 Muu liike-elämää palveleva toiminta","829","829 Muu liike-elämää palveleva toiminta","829"]
[{"$nulls":8},"84 Julkinen hallinto ja maanpuolustus; pakollinen sosiaalivakuutus","84","84 Julkinen hallinto ja maanpuolustus; pakollinen sosiaalivakuutus","84"]
[{"$nulls":8},"841 Julkinen hallinto","841","841 Julkinen hallinto","841"]
[{"$nulls":8},"842 Ulkoasiain hallinto, maanpuolustus ja järjestystoimi","842","842 Ulkoasiain hallinto, maanpuolustus ja järjestystoimi","842"]
[{"$nulls":8},"843 Pakollinen sosiaalivakuutustoiminta","843","843 Pakollinen sosiaalivakuutustoiminta","843"]
[{"$nulls":8},"85 Koulutus","85","85 Koulutus","85"]
[{"$nulls":8},"851 Esiasteen koulutus","851","851 Esiasteen koulutus","851"]
[{"$nulls":8},"852 Alemman perusasteen koulutus","852","852 Alemman perusasteen koulutus","852"]
[{"$nulls":8},"853 Ylemmän perusasteen ja keskiasteen koulutus","853","853 Ylemmän perusasteen ja keskiasteen koulutus","853"]
[{"$nulls":8},{"$f":"K333","v":"854 Korkea-asteen koulutus"},"854","854 Korkea-asteen koulutus","854"]
[{"$nulls":8},"855 Muu koulutus","855","855 Muu koulutus","855"]
[{"$nulls":8},"856 Koulutusta palveleva toiminta","856","856 Koulutusta palveleva toiminta","856"]
[{"$nulls":8},"86 Terveyspalvelut","86","86 Terveyspalvelut","86"]
[{"$nulls":8},"861 Terveydenhuollon laitospalvelut","861","861 Terveydenhuollon laitospalvelut","861"]
[{"$nulls":8},"862 Lääkäri- ja hammaslääkäripalvelut","862","862 Lääkäri- ja hammaslääkäripalvelut","862"]
[{"$nulls":8},"869 Muut terveydenhuoltopalvelut","869","869 Muut terveydenhuoltopalvelut","869"]
[{"$nulls":8},"87 Sosiaalihuollon laitospalvelut","87","87 Sosiaalihuollon laitospalvelut","87"]
[{"$nulls":8},"871 Sosiaalihuollon hoitolaitokset","871","871 Sosiaalihuollon hoitolaitokset","871"]
[{"$nulls":8},"872 Kehitysvammaisten sekä mielenterveys- ja päihdeongelmaisten asumispalvelut","872","872 Kehitysvammaisten sekä mielenterveys- ja päihdeongelmaisten asumispalvelut","872"]
[{"$nulls":8},"873 Vanhusten ja vammaisten asumispalvelut","873","873 Vanhusten ja vammaisten asumispalvelut","873"]
[{"$nulls":8},"879 Muut sosiaalihuollon laitospalvelut","879","879 Muut sosiaalihuollon laitospalvelut","879"]
[{"$nulls":8},"88 Sosiaalihuollon avopalvelut","88","88 Sosiaalihuollon avopalvelut","88"]
[{"$nulls":8},"881 Vanhusten ja vammaisten sosiaalihuollon avopalvelut","881","881 Vanhusten ja vammaisten sosiaalihuollon avopalvelut","881"]
[{"$nulls":8},"889 Muut sosiaalihuollon avopalvelut","889","889 Muut sosiaalihuollon avopalvelut","889"]
[{"$nulls":8},"90 Kulttuuri- ja viihdetoiminta","90","90 Kulttuuri- ja viihdetoiminta","90"]
[{"$nulls":8},"900 Kulttuuri- ja viihdetoiminta","900","900 Kulttuuri- ja viihdetoiminta","900"]
[{"$nulls":8},"91 Kirjastojen, arkistojen, museoiden ja muiden kulttuurilaitosten toiminta","91","91 Kirjastojen, arkistojen, museoiden ja muiden kulttuurilaitosten toiminta","91"]
[{"$nulls":8},"910 Kirjastojen, arkistojen, museoiden ja muiden kulttuurilaitosten toiminta","910","910 Kirjastojen, arkistojen, museoiden ja muiden kulttuurilaitosten toiminta","910"]
[{"$nulls":8},"92 Rahapeli- ja vedonlyöntipalvelut","92","92 Rahapeli- ja vedonlyöntipalvelut","92"]
[{"$nulls":8},"920 Rahapeli- ja vedonlyöntipalvelut","920","920 Rahapeli- ja vedonlyöntipalvelut","920"]
[{"$nulls":8},"93 Urheilutoiminta sekä huvi- ja virkistyspalvelut","93","93 Urheilutoiminta sekä huvi- ja virkistyspalvelut","93"]
[{"$nulls":8},"931 Urheilutoiminta","931","931 Urheilutoiminta","931"]
[{"$nulls":8},"932 Huvi- ja virkistystoiminta","932","932 Huvi- ja virkistystoiminta","932"]
[{"$nulls":8},"94 Järjestöjen toiminta","94","94 Järjestöjen toiminta","94"]
[{"$nulls":8},"941 Elinkeinoelämän, työnantaja- ja ammattialajärjestöjen toiminta","941","941 Elinkeinoelämän, työnantaja- ja ammattialajärjestöjen toiminta","941"]
[{"$nulls":8},"942 Ammattiyhdistysten toiminta","942","942 Ammattiyhdistysten toiminta","942"]
[{"$nulls":8},"949 Muiden järjestöjen toiminta","949","949 Muiden järjestöjen toiminta","949"]
[{"$nulls":8},"95 Tietokoneiden, henkilökohtaisten ja kotitaloustavaroiden korjaus","95","95 Tietokoneiden, henkilökohtaisten ja kotitaloustavaroiden korjaus","95"]
[{"$nulls":8},"951 Tietokoneiden ja viestintälaitteiden korjaus","951","951 Tietokoneiden ja viestintälaitteiden korjaus","951"]
[{"$nulls":8},"952 Henkilökohtaisten ja kotitaloustavaroiden korjaus","952","952 Henkilökohtaisten ja kotitaloustavaroiden korjaus","952"]
[{"$nulls":8},"96 Muut henkilökohtaiset palvelut","96","96 Muut henkilökohtaiset palvelut","96"]
[{"$nulls":8},"960 Muut henkilökohtaiset palvelut","960","960 Muut henkilökohtaiset palvelut","960"]
[{"$nulls":8},"97 Kotitalouksien toiminta kotitaloustyöntekijöiden työnantajina","97","97 Kotitalouksien toiminta kotitaloustyöntekijöiden työnantajina","97"]
[{"$nulls":8},"970 Kotitalouksien toiminta kotitaloustyöntekijöiden työnantajina","970","970 Kotitalouksien toiminta kotitaloustyöntekijöiden työnantajina","970"]
[{"$nulls":8},"98 Kotitalouksien eriyttämätön toiminta tavaroiden ja palvelujen tuottamiseksi omaan käyttöön","98","98 Kotitalouksien eriyttämätön toiminta tavaroiden ja palvelujen tuottamiseksi omaan käyttöön","98"]
[{"$nulls":8},"981 Kotitalouksien eriyttämätön toiminta tavaroiden tuottamiseksi omaan käyttöön","981","981 Kotitalouksien eriyttämätön toiminta tavaroiden tuottamiseksi omaan käyttöön","981"]
[{"$nulls":8},"982 Kotitalouksien eriyttämätön toiminta palvelujen tuottamiseksi omaan käyttöön","982","982 Kotitalouksien eriyttämätön toiminta palvelujen tuottamiseksi omaan käyttöön","982"]
[{"$nulls":8},"99 Kansainvälisten organisaatioiden ja toimielinten toiminta","99","99 Kansainvälisten organisaatioiden ja toimielinten toiminta","99"]